Workbook

Sheet Serviceability (hidden)
C3: Serviceability Calculator (Residential)
D4: RedZed Lending Solutions Pty Ltd (ACL 311128)
D6: Information can be entered in the clear boxes, the grey boxes contain RedZed calculations.
D8: Application name - mandatory
D10: Income Table | I10: Gross Annual | N10: Net Monthly
D12: Personal Income | E12: Select Household | F12: PAYG | H12: Self Employed
D13: Applicant / Guarantor 1 | F13: 5000 | H13: 5000 | I13: =IFERROR(F13+H13,0) -> 10000 | N13: ='Tax Calc'!I5 -> 816.6666667
D14: Applicant / Guarantor 2 | I14: =IFERROR(F14+H14,0) -> 0 | N14: ='Tax Calc'!I6 -> 0
D15: Applicant / Guarantor 3 | H15: 400 | I15: =IFERROR(F15+H15,0) -> 400 | N15: ='Tax Calc'!I7 -> 32.66666667
D16: Applicant / Guarantor 4 | I16: =IFERROR(F16+H16,0) -> 0 | N16: ='Tax Calc'!I8 -> 0
H18: Select Household | I18: Enter Source of Income
D19: Applicant / Guarantor 1 | E19: Other Regular Monthly Income (eg - Centrelink payments, investments) | I19: dfdf | N19: dfdf
D20: Applicant / Guarantor 2 | E20: Other Regular Monthly Income (eg - Centrelink payments, investments)
D21: Applicant / Guarantor 3 | E21: Other Regular Monthly Income (eg - Centrelink payments, investments)
D22: Applicant / Guarantor 4 | E22: Other Regular Monthly Income (eg - Centrelink payments, investments)
D24: Rental Income | E24: Existing | N24: =I24*0.8/12 -> 0
D25: Rental Income | E25: New | N25: =I25*0.8/12 -> 0
D27: Company Income (only to be used if the company is the loan applicant)
D28: *If a guarantor's income is also required to help with serviceability,
D29: all company and guarantor debts, and living expenses need to be included
D30: Company Net Profit Before Tax - Full Doc or Alt Doc Self Certified | N30: =(I30-(I30*Table_Company_Tax_Rate))/12 -> 0
D31: =IF(I30 <> 0, "Only NPBT from the borrowing Company entity can be entered in this field. Other related company NPBT needs to be allocated to the director(s)/guarantor(s)", 0) -> 0
D32: Total Monthly Net Income | N32: =SUM(N13,N14,N15,N16,N19,N20,N21,N22,N24,N25,N30) -> 849.3333333
D35: Monthly Living Expenses
D37: Applicants(s) declared expenses - mandatory
D39: Ongoing (combined) standard monthly living expenses declared by applicant(s)
D41: RedZed Living Allowance
D42: Number of adults - household 1 | J42: =Tables!E84 -> 
D43: Number of dependant children - household 1
D44: Number of adults - household 2 | J44: =Tables!E85 -> 
D45: Number of dependant children - household 2
D47: Total Monthly Living Expenses used in assessment | N47: =MAX(SUM(N42:N45),I39) -> 0
D50: Available Income | N50: =Tables!B313 -> 849.3333333
D52: Commitments | N52: Monthly
D54: RedZed Loan Applied For
E56: Loan 1 | N56: =Tables!B319 -> 0
E57: Loan 2 | N57: =Tables!B320 -> 0
E58: Loan 3 | N58: =Tables!B321 -> 0
D59: Note: An interest rate buffer is automatically applied by the calculator. You do not need to apply a separate buffer.
D61: Existing Loans | E61: Loan 1 - Existing Secured
E62: Loan 2 - Existing Secured
E63: Loan 3 - Existing Unsecured
E64: Loan 4 - Existing Unsecured
D67: Credit Cards | K67: (@3.82%) | N67: =I67*3.82% -> 0
D69: Maintenance / On Going Rent
D71: Other Fixed Monthly Repayments
D73: Total Monthly Commitments | N73: =SUM(N56:N71) -> 0
K75: Pass | N75: (DSR)
D76: This Serviceability Calculator is intended as a guide only and no loan approval can be assumed on the basis of the results of this calculator. All applications remain subject to the normal credit and approval criteria of RedZed Lending Solutions Pty Ltd. | N76: =IFERROR('Serviceability Calc'!C22,0) -> 0
K78: DTI must also be met for Regulated Loans
K79: For Company Borrowers DSR must be >1.10
K80: For IO Inv loans > 75% DSR must be >1.10
D81: Debt to Income Ratio - minimum requirements - Regulated Loans Only | N81: DTI
D82: Borrower/income Type | E82: DTI > 6.0 - 7.0 | F82: DTI > 7.0 - < 8.0 | G82: DTI > 8.0 - 8.5 | I82: DTI > 8.5 | N82: =IFERROR((SUM(I56:I58)+SUM(I61:I64)+I67)/(SUM(I13:I16)+SUM(N19:N22)*12+SUM(I24:I25)),"") -> 0
D83: Self Employed | E83: DSR >1.10, >/=1.06 with rental income DTI up to 7.0 | F83: DSR >1.10, >/=1.06 with rental income DTI > 7.0 - < 8.0 | G83: Minimum DSR >/=1.02 All income | I83: Contact your BDM
D84: Self Employed & PAYG (PAYG < 25% of total income) | E84: DSR >1.10, >/=1.06 with rental income DTI up to 7.0) | F84: DSR >1.10, >/=1.06 with rental income DTI </= 8.0 | G84: Minimum DSR >/=1.02 All income | I84: Contact your BDM
D85: Self Employed & PAYG (PAYG > 25% of total income) | E85: DSR >1.10, >/=1.06 with rental income DTI up to 7.0 | F85: DSR >1.10, >/=1.06 with rental income DTI </= 8.0 | G85: Minimum DSR >/=1.02 All income | I85: Contact your BDM
D86: PAYG Only | E86: DSR >1.10, >/=1.06 with rental income DTI up to 6.5 | F86: DSR >1.10, >/=1.06 with rental income > 6.5 - </= 7.5 | G86: Minimum DSR >/=1.02 All income DTI > 7.5 - =/> 8.0 | I86: Contact your BDM
D89: I, the Introducer, confirm that reasonable enquiries about the applicant(s) current and ongoing financial situation have been undertaken and are reflected in the figures entered into this calculation. The applicants(s) have been given sufficient time to consider the declared monthly living expenses amount which has been derived following due consideration.
O94: ='Version Control'!I1 -> V1.2 240206

Sheet SMSF Serviceability Calculator
C3: SMSF Serviceability Calculator
D4: RedZed Lending Solutions Pty Ltd (ACL 311128)
D6: Enter information in the pink boxes.The grey boxes contain calculated results.
D8: SMSF Application name - mandatory
D10: Number of separate households the SMSF members reside in? | H10: =HYPERLINK("#"&ADDRESS(ROW(),COLUMN()-1),CHAR(128)) -> €
D14: Superannuation Income Table - Contributions to existing Self-managed Super Fund &/or Retail Superannuation Fund | I14: Gross Annual Contributions | N14: Net Monthly
D16: Superannuation Contributions (RedZed allow maximum 4 members)
D17: Member / Guarantor 1 | E17: From Superannuation Fund Statements | I17: 0 | N17: =Tables!D384 -> 0
D18: Member / Guarantor 2 | E18: From Superannuation Fund Statements | I18: 0 | N18: =Tables!E384 -> 0
D19: Member / Guarantor 3 | E19: From Superannuation Fund Statements | I19: 0 | N19: =Tables!F384 -> 0
D20: Member / Guarantor 4 | E20: From Superannuation Fund Statements | I20: 0 | N20: =Tables!G384 -> 0
D22: SMSF Rental Income | E22: New Purchase | I22: 0 | N22: =I22*0.8/12 -> 0
D23: SMSF Rental Income | E23: Existing Property held via SMSF | I23: 0 | N23: =I23*0.8/12 -> 0
D26: SMSF Liquid Asset Position (combined - cash, shares and bonds held post the settlement of this loan)
D27: * The equivalent of 3 months repayments (on all SMSF mortgages) are required as a Liquid Asset balance Please note for Commercial Super product; - The equivalent of 6 months repayments (on all SMSF mortgages) are required as a Liquid Asset balance if the lease - has <12 months remaining, is new, or is in favour of a SMSF members business. | I27: Liquid Asset Position
I28: 0 | N28: =I28*0.04*0.85/12 -> 0
D29: =IF(AND(EXACT(G51,"SMSF Comm"),I28 < 6*N64,I28 >= 3*N64),"Minimum Liquid Asset position is < required. Contact your BDM.",IF(I28 < 3*N64, "Minimum Liquid Asset position is < required. Contact your BDM.", 0)) -> 0
D30: Total Monthly Net Income | N30: =SUM(N17:N20,N22:N23,N28) -> 0
D33: SMSF Expenses / Regular Withdrawals | I33: Gross Annual
D35: Existing Superannuation Fund Expenses
D36: Ongoing SMSF expenses including audit fees, facility maintenance, insurance payments etc. | I36: 0 | J36: Min. $2000.00 p.a. | N36: =IF(ISBLANK(I36),0,IF(I36<2000,2000,I36)/12) -> 166.6666667
D38: Regular Withdrawals from the fund (If Any) | I38: 0 | N38: =I38/12 -> 0
J39: =Tables!E84 -> 
D41: Total Monthly SMSF Expenses and Withdrawals | J41: =Tables!E85 ->  | N41: =N36+N38 -> 166.6666667
D45: Available Income | N45: =N30-N41 -> -166.6666667
D47: SMSF Borrowing Commitments | N47: Monthly
D49: New & Existing Loans
G50: Select Loan Type | I50: Loan Amount | J50: Loan Term in Years | K50: Interest Only Term | L50: Interest Rate
E51: New RedZed Loan | H51: =HYPERLINK("#"&ADDRESS(ROW(),COLUMN()-1),CHAR(128)) -> € | I51: 0 | N51: =Tables!B387 -> 0
J54: Limit | K54: Financier
D55: Existing SMSF Loans | E55: Loan 1 | J55: 0 | N55: 0
E56: Loan 2 | J56: 0 | N56: 0
E57: Loan 3 | J57: 0 | N57: 0
J59: Limit | K59: Financier
D60: Other Loan/Liability Limits if any | E60: eg - Margin Loan | J60: 0 | N60: 0
D64: Total Monthly Commitments | N64: =SUM(N51,N55:N57,N60) -> 0
K66: SMSF Fund Only Debt Servicing Ratio (DSR)
D67: This Serviceability Calculator is intended as a guide only and no loan approval can be assumed on the basis of the results of this calculator. All applications remain subject to the normal credit and approval criteria of RedZed Lending Solutions Pty Ltd. | N67: =IFERROR(IF(N51>0,'Serviceability Calc'!G25,0),0) -> 0
K69: For SMSF Fund Only Servicing DSR must be >1.00
D79: SMSF Fund + Member Servicing Level | G79: Household | I79: Proposed Monthly Contribution | J79: Available Monthly Contribution | N79: RedZed Adopted Contribution
G80: Household 1 | I80: =Tables!B369 -> 0 | J80: =IF(Tables!B367<0,0,Tables!B367) -> 0 | N80: =Tables!B374 -> 0
G81: Household 2 | I81: =Tables!C369 -> 0 | J81: =IF(Tables!C367<0,0,Tables!C367) -> 0 | N81: =Tables!C374 -> 0
G82: Household 3 | I82: =Tables!D369 -> 0 | J82: =IF(Tables!D367<0,0,Tables!D367) -> 0 | N82: =Tables!D374 -> 0
G83: Household 4 | I83: =Tables!E369 -> 0 | J83: =IF(Tables!E367<0,0,Tables!E367) -> 0 | N83: =Tables!E374 -> 0
D84: Member Additional Contributions
D86: Serviceability has now been assessed using the proosed additional member contributions as detailed in the Member Level Serviceability Cal worksheet.
K87: SMSF + Member Debt
K88: Servicing Ratio | N88: (DSR)
K89: Fail | N89: =IFERROR('Serviceability Calc'!J24,0) -> 0
K91: SMSF + Member Level Servicing DSR must be >1.10
D92: I, the Introducer, confirm that reasonable enquiries about the applicant(s) current and ongoing financial situation have been undertaken and are reflected in the figures entered into this calculation. Where required the member(s) have been given sufficient time to consider the declared monthly living expenses amount which has been derived following due consideration.
O100: ='Version Control'!I1 -> V1.2 240206

Sheet Member Serviceability Calc (hidden)
C3: SMSF Additional Member Contribution
D4: RedZed Lending Solutions Pty Ltd (ACL 311128)
D6: Enter information in the Pink boxes. The grey boxes contain calculated results
E8: =Tables!H324 -> 
D10: Member(s) / Guarantor(s) Income Table | K10: Gross Annual | P10: Net Monthly
D12: Personal Income | E12: Select Household | G12: PAYG | H12: Self Employed | I12: Alt Doc/Full Doc
D13: Member / Guarantor 1 | F13: =HYPERLINK("#"&ADDRESS(ROW(),COLUMN()-1),CHAR(128)) -> € | G13: 0 | H13: 0 | J13: =HYPERLINK("#"&ADDRESS(ROW(),COLUMN()-1),CHAR(128)) -> € | K13: =IFERROR(G13+H13,0) -> 0 | L13: =IF(AND(H13 <> 0,I13 = ""),"Missing Alt/Full Doc Type","") ->  | P13: ='Tax Calc'!I9 -> 0
D14: Member / Guarantor 2 | F14: =HYPERLINK("#"&ADDRESS(ROW(),COLUMN()-1),CHAR(128)) -> € | G14: 0 | H14: 0 | J14: =HYPERLINK("#"&ADDRESS(ROW(),COLUMN()-1),CHAR(128)) -> € | K14: =IFERROR(G14+H14,0) -> 0 | L14: =IF(AND(H14 <> 0,I14 = ""),"Missing Alt/Full Doc Type","") ->  | P14: ='Tax Calc'!I10 -> 0
D15: Member / Guarantor 3 | F15: =HYPERLINK("#"&ADDRESS(ROW(),COLUMN()-1),CHAR(128)) -> € | G15: 0 | H15: 0 | J15: =HYPERLINK("#"&ADDRESS(ROW(),COLUMN()-1),CHAR(128)) -> € | K15: =IFERROR(G15+H15,0) -> 0 | L15: =IF(AND(H15 <> 0,I15 = ""),"Missing Alt/Full Doc Type","") ->  | P15: ='Tax Calc'!I11 -> 0
D16: Member / Guarantor 4 | F16: =HYPERLINK("#"&ADDRESS(ROW(),COLUMN()-1),CHAR(128)) -> € | G16: 0 | H16: 0 | J16: =HYPERLINK("#"&ADDRESS(ROW(),COLUMN()-1),CHAR(128)) -> € | K16: =IFERROR(G16+H16,0) -> 0 | L16: =IF(AND(H16 <> 0,I16 = ""),"Missing Alt/Full Doc Type","") ->  | P16: ='Tax Calc'!I12 -> 0
I18: Enter Source of Income
D19: Member / Guarantor 1 | E19: Other Regular Income (eg - Centrelink payments,) | K19: 0 | P19: =K19/12 -> 0
D20: Member / Guarantor 2 | E20: Other Regular Income (eg - Centrelink payments,) | K20: 0 | P20: =K20/12 -> 0
D21: Member / Guarantor 3 | E21: Other Regular Income (eg - Centrelink payments,) | K21: 0 | P21: =K21/12 -> 0
D22: Member / Guarantor 4 | E22: Other Regular Income (eg - Centrelink payments,) | K22: 0 | P22: =K22/12 -> 0
D24: Household 1
D25: Rental Income | E25: Existing | K25: 0 | P25: =K25*0.8/12 -> 0
D28: Household 2
D29: Rental Income | E29: Existing | K29: 0 | P29: =K29*0.8/12 -> 0
D32: Household 3
D33: Rental Income | E33: Existing | K33: 0 | P33: =K33*0.8/12 -> 0
D36: Household 4
D37: Rental Income | E37: Existing | K37: 0 | P37: =K37*0.8/12 -> 0
D41: Total Monthly Net Income Household 1 | P41: =SUM(Tables!B338,P25,P26) -> 0
D42: Total Monthly Net Income Household 2 | P42: =SUM(Tables!C338,P29,P30) -> 0
D43: Total Monthly Net Income Household 3 | P43: =SUM(Tables!D338,P33,P34) -> 0
D44: Total Monthly Net Income Household 4 | P44: =SUM(Tables!E338,P37,P38) -> 0
D47: Monthly Living Expenses
D49: Applicants(s) declared expenses - mandatory | K49: RedZed Living Allowance
D51: Household 1 | E51: Ongoing (combined) standard monthly living expenses | K51: Number of adults - household 1
E52: declared by applicant(s) | I52: 0 | K52: Number of dependant children - household 1
D54: Household 2 | E54: Ongoing (combined) standard monthly living expenses | K54: Number of adults - household 2
E55: declared by applicant(s) | I55: 0 | K55: Number of dependant children - household 2
D57: Household 3 | E57: Ongoing (combined) standard monthly living expenses | K57: Number of adults - household 3
E58: declared by applicant(s) | I58: 0 | K58: Number of dependant children - household 3
D60: Household 4 | E60: Ongoing (combined) standard monthly living expenses | K60: Number of adults - household 4
E61: declared by applicant(s) | I61: 0 | K61: Number of dependant children - household 4
D67: Available Income Household 1 | P67: =IF(Tables!B365 <0,0,Tables!B365) -> 0
D68: Available Income Household 2 | P68: =IF(Tables!C365<0,0,Tables!C365) -> 0
D69: Available Income Household 3 | P69: =IF(Tables!D365<0,0,Tables!D365) -> 0
D70: Available Income Household 4 | P70: =IF(Tables!E365<0,0,Tables!E365) -> 0
D72: Commitments | P72: Monthly
D74: Household 1 | L74: Limit | M74: Financier
D75: Existing Loans (non SMSF) | E75: Loan 1 - Existing Secured | L75: 0 | P75: 0
E76: Loan 2 - Existing Secured | L76: 0 | P76: 0
E77: Loan 3 - Existing Secured | L77: 0 | P77: 0
E78: Loan 4 - Existing Unsecured | L78: 0 | P78: 0
E79: Loan 5 - Existing Unsecured | L79: 0 | P79: 0
E80: Loan 6 - Existing Unsecured | L80: 0 | P80: 0
L82: Total Credit Limits
D83: Credit Cards | L83: 0 | M83: (@3.82%) | P83: =L83*3.82% -> 0
D85: Maintenance / On Going Rent | P85: 0
D87: Other Fixed Monthly Repayments | P87: 0
D89: Total Monthly Surplus Funds Household 1 | P89: =IF(P67-SUM(P75:P87)<0,0,P67-SUM(P75:P87)) -> 0
D92: Household 2 | L92: Limit | M92: Financier
D93: Existing Loans (non SMSF) | E93: Loan 1 - Existing Secured | L93: 0 | P93: 0
E94: Loan 2 - Existing Secured | L94: 0 | P94: 0
E95: Loan 3 - Existing Secured | L95: 0 | P95: 0
E96: Loan 4 - Existing Unsecured | L96: 0 | P96: 0
E97: Loan 5 - Existing Unsecured | L97: 0 | P97: 0
E98: Loan 6 - Existing Unsecured | L98: 0 | P98: 0
L100: Total Credit Limits
D101: Credit Cards | L101: 0 | M101: (@3.82%) | P101: =L101*3.82% -> 0
D103: Maintenance / On Going Rent | P103: 0
D105: Other Fixed Monthly Repayments | P105: 0
D107: Total Monthly Surplus Funds Household 2 | P107: =IF(P68-SUM(P93:P105)<0,0,P68-SUM(P93:P105)) -> 0
D110: Household 3 | L110: Limit | M110: Financier
D111: Existing Loans (non SMSF) | E111: Loan 1 - Existing Secured | L111: 0 | P111: 0
E112: Loan 2 - Existing Secured | L112: 0 | P112: 0
E113: Loan 3 - Existing Secured | L113: 0 | P113: 0
E114: Loan 4 - Existing Unsecured | L114: 0 | P114: 0
E115: Loan 5 - Existing Unsecured | L115: 0 | P115: 0
E116: Loan 6 - Existing Unsecured | L116: 0 | P116: 0
L118: Total Credit Limits
D119: Credit Cards | L119: 0 | M119: (@3.82%) | P119: =L119*3.82% -> 0
D121: Maintenance / On Going Rent | P121: 0
D123: Other Fixed Monthly Repayments | P123: 0
D125: Total Monthly Surplus Funds Household 3 | P125: =IF(P69-SUM(P111:P123)<0,0,P69-SUM(P111:P123)) -> 0
D128: Household 4 | L128: Limit | M128: Financier
D129: Existing Loans (non SMSF) | E129: Loan 1 - Existing Secured | L129: 0 | P129: 0
E130: Loan 2 - Existing Secured | L130: 0 | P130: 0
E131: Loan 3 - Existing Secured | L131: 0 | P131: 0
E132: Loan 4 - Existing Unsecured | L132: 0 | P132: 0
E133: Loan 5 - Existing Unsecured | L133: 0 | P133: 0
E134: Loan 6 - Existing Unsecured | L134: 0 | P134: 0
L136: Total Credit Limits
D137: Credit Cards | L137: 0 | M137: (@3.82%) | P137: =L137*3.82% -> 0
D139: Maintenance / On Going Rent | P139: 0
D141: Other Fixed Monthly Repayments | P141: 0
D143: Total Monthly Surplus Funds Household 4 | P143: =IF(P70-SUM(P129:P141)<0,0,P70-SUM(P129:P141)) -> 0
D146: Proposed Additional Contributions | G146: in addition to current contributions | P146: Net Monthly
D148: Enter the additional contribution amount the member is proposing to pay into their SMSF (above current contributions.)
D149: Member / Guarantor 1 | I149: =E13 ->  | L149: Enter monthly proposed client contribution | P149: 0
D150: Member / Guarantor 2 | I150: =E14 ->  | L150: Enter monthly proposed client contribution | P150: 0
D151: Member / Guarantor 3 | I151: =E15 ->  | L151: Enter monthly proposed client contribution | P151: 0
D152: Member / Guarantor 4 | I152: =E16 ->  | L152: Enter monthly proposed client contribution | P152: 0
M163: SMSF Debt Servicing Ratio | P163: (DSR)
D164: This Serviceability Calculator is intended as a guide only and no loan approval can be assumed on the basis of the results of this calculator. All applications remain subject to the normal credit and approval criteria of RedZed Lending Solutions Pty Ltd. | P164: =IFERROR('Serviceability Calc'!G25,0) -> 0
M166: For SMSF Level Servicing DSR must be >1.00
D174: SMSF Fund + Member Servicing Level | K174: Proposed Monthly Contribution
I175: Household | L175: Available Monthly Contribution | P175: RedZed Adopted Contribution
I177: Household 1 | K177: =Tables!B369 -> 0 | L177: =IF(Tables!B367<0,0,Tables!B367) -> 0 | P177: =Tables!B374 -> 0
I178: Household 2 | K178: =Tables!C369 -> 0 | L178: =IF(Tables!C367<0,0,Tables!C367) -> 0 | P178: =Tables!C374 -> 0
I179: Household 3 | K179: =Tables!D369 -> 0 | L179: =IF(Tables!D367<0,0,Tables!D367) -> 0 | P179: =Tables!D374 -> 0
I180: Household 4 | K180: =Tables!E369 -> 0 | L180: =IF(Tables!E367<0,0,Tables!E367) -> 0 | P180: =Tables!E374 -> 0
D182: Member Additional Contributions | I182: Please be reminded that if clients' are proposing to make additional contributions to assist in servicing this loan, we require a signed and completed proposed additional member contributions declaration form
D184: Serviceability has now been assessed using the proosed additional member contributions as detailed in the Member Level Serviceability Cal worksheet. | M184: SMSF + Member Debt
M185: Servicing Ratio | P185: (DSR)
M186: Fail | P186: =IFERROR('Serviceability Calc'!J24,0) -> 0
M188: SMSF + Member Level Servicing DSR must be >1.10
D191: I, the Introducer, confirm that reasonable enquiries about the member(s) current and ongoing financial situation have been undertaken and are reflected in the figures entered into this calculation. The member(s) have been given sufficient time to consider the declared monthly living expenses amount which has been derived following due consideration.
Q199: ='Version Control'!I1 -> V1.2 240206

Sheet HEM (hidden)
A1: Income Range ($) | B1: Single Adult | C1: Single Adult +1 | D1: Single Adult +2 | E1: Single Adult +3 | F1: Single Adult +4 | G1: Single Adult +5 | H1: Single Adult +6 | I1: Couple | J1: Couple +1 | K1: Couple +2 | L1: Couple +3 | M1: Couple +4 | N1: Couple +5 | O1: Couple +6
A2: 0 - 25,000 | B2: 1274 | C2: 1791 | D2: 2268 | E2: 2819 | F2: 3277 | G2: 4003 | H2: 4724 | I2: 2469 | J2: 2942 | K2: 3253 | L2: 3685 | M2: 4276 | N2: 4646 | O2: 5016
A3: 25,001 - 38,000 | B3: 1327 | C3: 1791 | D3: 2268 | E3: 2819 | F3: 3277 | G3: 4003 | H3: 4724 | I3: 2469 | J3: 2942 | K3: 3253 | L3: 3685 | M3: 4276 | N3: 4646 | O3: 5016
A4: 38,001 - 50,000 | B4: 1401 | C4: 1864 | D4: 2342 | E4: 2819 | F4: 3277 | G4: 4003 | H4: 4724 | I4: 2543 | J4: 2942 | K4: 3253 | L4: 3685 | M4: 4276 | N4: 4646 | O4: 5016
A5: 50,001 - 63,000 | B5: 1488 | C5: 1953 | D5: 2430 | E5: 2907 | F5: 3366 | G5: 4003 | H5: 4724 | I5: 2631 | J5: 3031 | K5: 3342 | L5: 3685 | M5: 4276 | N5: 4646 | O5: 5016
A6: 63,001 - 75,000 | B6: 1653 | C6: 2118 | D6: 2596 | E6: 3073 | F6: 3533 | G6: 4003 | H6: 4724 | I6: 2797 | J6: 3198 | K6: 3509 | L6: 3854 | M6: 4276 | N6: 4646 | O6: 5016
A7: 75,001 - 100,000 | B7: 1899 | C7: 2366 | D7: 2843 | E7: 3320 | F7: 3782 | G7: 4253 | H7: 4724 | I7: 3044 | J7: 3446 | K7: 3759 | L7: 4105 | M7: 4529 | N7: 4900 | O7: 5271
A8: 100,001 - 125,000 | B8: 2250 | C8: 2719 | D8: 3196 | E8: 3673 | F8: 4138 | G8: 4611 | H8: 5083 | I8: 3397 | J8: 3802 | K8: 4115 | L8: 4465 | M8: 4890 | N8: 5263 | O8: 5636
A9: 125,001 - 150,000 | B9: 2553 | C9: 3024 | D9: 3500 | E9: 3977 | F9: 4445 | G9: 4918 | H9: 5391 | I9: 3702 | J9: 4108 | K9: 4422 | L9: 4775 | M9: 5200 | N9: 5575 | O9: 5949
A10: 150,001 - 175,000 | B10: 2935 | C10: 3408 | D10: 3884 | E10: 4360 | F10: 4833 | G10: 5307 | H10: 5781 | I10: 4086 | J10: 4494 | K10: 4809 | L10: 5166 | M10: 5593 | N10: 5969 | O10: 6346
A11: 175,001 - 200,000 | B11: 3129 | C11: 3604 | D11: 4080 | E11: 4556 | F11: 5030 | G11: 5505 | H11: 5980 | I11: 4282 | J11: 4691 | K11: 5006 | L11: 5365 | M11: 5792 | N11: 6170 | O11: 6547
A12: 200,001 - 251,000 | B12: 3321 | C12: 3797 | D12: 4272 | E12: 4748 | F12: 5224 | G12: 5700 | H12: 6175 | I12: 4474 | J12: 4885 | K12: 5201 | L12: 5562 | M12: 5989 | N12: 6367 | O12: 6746
A13: 251,001 - 313,000 | B13: 3847 | C13: 4326 | D13: 4801 | E13: 5276 | F13: 5757 | G13: 6234 | H13: 6712 | I13: 5003 | J13: 5416 | K13: 5734 | L13: 6100 | M13: 6528 | N13: 6910 | O13: 7291
A14: 313,000 - 376,000 | B14: 4338 | C14: 4820 | D14: 5295 | E14: 5769 | F14: 6255 | G14: 6734 | H14: 7213 | I14: 5497 | J14: 5913 | K14: 6232 | L14: 6603 | M14: 7033 | N14: 7417 | O14: 7800
A15: 376,001 - 626,000 | B15: 4621 | C15: 5105 | D15: 5579 | E15: 6054 | F15: 6542 | G15: 7022 | H15: 7502 | I15: 5782 | J15: 6200 | K15: 6519 | L15: 6893 | M15: 7323 | N15: 7709 | O15: 8094
A19: Income Range lookup | B19: Row Offset Value | D19: Dependents/Household Number | F19: 1 | G19: 2 | H19: 3 | I19: 4 | J19: 5 | K19: 6 | L19: 7
A20: 25001 | B20: 1 | D20: 0 | F20: 0 | G20: 7 | H20: 13 | I20: 13 | J20: 13 | K20: 13 | L20: 13
A21: 38001 | B21: 2 | D21: 1 | F21: 1 | G21: 8 | H21: 13 | I21: 13 | J21: 13 | K21: 13 | L21: 13
A22: 50001 | B22: 3 | D22: 2 | F22: 2 | G22: 9 | H22: 13 | I22: 13 | J22: 13 | K22: 13 | L22: 13
A23: 63001 | B23: 4 | D23: 3 | F23: 3 | G23: 10 | H23: 13 | I23: 13 | J23: 13 | K23: 13 | L23: 13
A24: 75001 | B24: 5 | D24: 4 | F24: 4 | G24: 11 | H24: 13 | I24: 13 | J24: 13 | K24: 13 | L24: 13
A25: 100001 | B25: 6 | D25: 5 | F25: 5 | G25: 12 | H25: 13 | I25: 13 | J25: 13 | K25: 13 | L25: 13
A26: 125001 | B26: 7 | D26: 6 | F26: 6 | G26: 13 | H26: 13 | I26: 13 | J26: 13 | K26: 13 | L26: 13
A27: 150001 | B27: 8 | D27: 7 | F27: 13 | G27: 13 | H27: 13 | I27: 13 | J27: 13 | K27: 13 | L27: 13
A28: 175001 | B28: 9 | D28: 8 | F28: 13 | G28: 13 | H28: 13 | I28: 13 | J28: 13 | K28: 13 | L28: 13
A29: 200001 | B29: 10 | D29: 9 | F29: 13 | G29: 13 | H29: 13 | I29: 13 | J29: 13 | K29: 13 | L29: 13
A30: 251001 | B30: 11 | D30: 10 | F30: 13 | G30: 13 | H30: 13 | I30: 13 | J30: 13 | K30: 13 | L30: 13
A31: 313001 | B31: 12 | D31: 11 | F31: 13 | G31: 13 | H31: 13 | I31: 13 | J31: 13 | K31: 13 | L31: 13
A32: 376001 | B32: 13 | D32: 12 | F32: 13 | G32: 13 | H32: 13 | I32: 13 | J32: 13 | K32: 13 | L32: 13
D39: Household 1 | H39: Household 2
D40: Gross Income | F40: =IF(EXACT(Serviceability!E13,D39),Serviceability!I13,0)+IF(EXACT(Serviceability!E14, D39),Serviceability!I14,0)+IF(EXACT(Serviceability!E15, D39),Serviceability!I15,0)+IF(EXACT(Serviceability!E16, D39),Serviceability!I16,0)+IF(EXACT(Serviceability!H19, D39),Serviceability!N19*12,0)+IF(EXACT(Serviceability!H20, D39),Serviceability!N20*12,0)+IF(EXACT(Serviceability!H21, D39),Serviceability!N21*12,0)+IF(EXACT(Serviceability!H22, D39),Serviceability!N22*12,0) -> 0 | H40: Gross Income | J40: =IF(EXACT(Serviceability!E13, H39),Serviceability!I13,0)+IF(EXACT(Serviceability!E14,H39),Serviceability!I14,0)+IF(EXACT(Serviceability!E15,H39),Serviceability!I15,0)+IF(EXACT(Serviceability!E16,H39),Serviceability!I16,0)+IF(EXACT(Serviceability!H19, H39),Serviceability!N19*12,0)+IF(EXACT(Serviceability!H20, H39),Serviceability!N20*12,0)+IF(EXACT(Serviceability!H21, H39),Serviceability!N21*12,0)+IF(EXACT(Serviceability!H22, H39),Serviceability!N22*12,0) -> 0
D41: Single/Couple | F41: =+Serviceability!$I$42 -> 0 | H41: Single/Couple | J41: =Serviceability!I44 -> 0
D42: Dependents | F42: =+Serviceability!$I$43 -> 0 | H42: Dependents | J42: =Serviceability!I45 -> 0
D43: HEM Row Offset Value | F43: =IFERROR(VLOOKUP(F40,HEM!$A$20:$B$32,2,TRUE),0) -> 0 | H43: HEM Row Offset Value | J43: =IFERROR(VLOOKUP(J40,HEM!$A$20:$B$32,2,TRUE),0) -> 0
D44: HEM Column Offset Value | F44: =OFFSET($E$20,F42,F41) -> 0 | H44: HEM Column Offset Value | J44: =OFFSET($E$20,J42,J41) -> 0
D45: HEM Starting Value | F45: =OFFSET(B2,0,0) -> 1274 | H45: HEM Starting Value | J45: =OFFSET(F2,0,0) -> 3277
D46: HEM Min Living Expense | F46: =IF(F40=0, 0, OFFSET($B$2,F43,F44)) -> 0 | H46: HEM Min Living Expense | J46: =IF(J40=0,0,OFFSET($B$2,J43,J44)) -> 0
D49: Household 1 | H49: Household 2 | L49: Household 3 | P49: Household 4
D50: Gross Income | F50: =IF(EXACT('Member Serviceability Calc'!E13,D49),'Member Serviceability Calc'!K13,0)+IF(EXACT('Member Serviceability Calc'!E13, D49),'Member Serviceability Calc'!P19*12,0)+IF(EXACT('Member Serviceability Calc'!E14,D49),'Member Serviceability Calc'!K14,0)+IF(EXACT('Member Serviceability Calc'!E14, D49),'Member Serviceability Calc'!P20*12,0)+IF(EXACT('Member Serviceability Calc'!E15,D49),'Member Serviceability Calc'!K15,0)+IF(EXACT('Member Serviceability Calc'!E15, D49),'Member Serviceability Calc'!P21*12,0)+IF(EXACT('Member Serviceability Calc'!E16,D49),'Member Serviceability Calc'!K16,0)+IF(EXACT('Member Serviceability Calc'!E16, D49),'Member Serviceability Calc'!P22*12,0) -> 0 | H50: Gross Income | J50: =IF(EXACT('Member Serviceability Calc'!E13,H49),'Member Serviceability Calc'!K13,0)+IF(EXACT('Member Serviceability Calc'!E13, H49),'Member Serviceability Calc'!P19*12,0)+IF(EXACT('Member Serviceability Calc'!E14,H49),'Member Serviceability Calc'!K14,0)+IF(EXACT('Member Serviceability Calc'!E14, H49),'Member Serviceability Calc'!P20*12,0)+IF(EXACT('Member Serviceability Calc'!E15,H49),'Member Serviceability Calc'!K15,0)+IF(EXACT('Member Serviceability Calc'!E15, H49),'Member Serviceability Calc'!P21*12,0)+IF(EXACT('Member Serviceability Calc'!E16,H49),'Member Serviceability Calc'!K16,0)+IF(EXACT('Member Serviceability Calc'!E16, H49),'Member Serviceability Calc'!P22*12,0) -> 0 | L50: Gross Income | N50: =IF(EXACT('Member Serviceability Calc'!E13,L49),'Member Serviceability Calc'!K13,0)+IF(EXACT('Member Serviceability Calc'!E13, L49),'Member Serviceability Calc'!P19*12,0)+IF(EXACT('Member Serviceability Calc'!E14,L49),'Member Serviceability Calc'!K14,0)+IF(EXACT('Member Serviceability Calc'!E14, L49),'Member Serviceability Calc'!P20*12,0)+IF(EXACT('Member Serviceability Calc'!E15,L49),'Member Serviceability Calc'!K15,0)+IF(EXACT('Member Serviceability Calc'!E15, L49),'Member Serviceability Calc'!P21*12,0)+IF(EXACT('Member Serviceability Calc'!E16,L49),'Member Serviceability Calc'!K16,0)+IF(EXACT('Member Serviceability Calc'!E16, L49),'Member Serviceability Calc'!P22*12,0) -> 0 | P50: Gross Income | R50: =IF(EXACT('Member Serviceability Calc'!E13,P49),'Member Serviceability Calc'!K13,0)+IF(EXACT('Member Serviceability Calc'!E13, P49),'Member Serviceability Calc'!P19*12,0)+IF(EXACT('Member Serviceability Calc'!E14,P49),'Member Serviceability Calc'!K14,0)+IF(EXACT('Member Serviceability Calc'!E14, P49),'Member Serviceability Calc'!P20*12,0)+IF(EXACT('Member Serviceability Calc'!E15,P49),'Member Serviceability Calc'!K15,0)+IF(EXACT('Member Serviceability Calc'!E15, P49),'Member Serviceability Calc'!P21*12,0)+IF(EXACT('Member Serviceability Calc'!E16,P49),'Member Serviceability Calc'!K16,0)+IF(EXACT('Member Serviceability Calc'!E16, P49),'Member Serviceability Calc'!P22*12,0) -> 0
D51: Single/Couple | F51: =+'Member Serviceability Calc'!N51 -> 0 | H51: Single/Couple | J51: =+'Member Serviceability Calc'!N54 -> 0 | L51: Single/Couple | N51: =+'Member Serviceability Calc'!N57 -> 0 | P51: Single/Couple | R51: =+'Member Serviceability Calc'!N60 -> 0
D52: Dependents | F52: =+'Member Serviceability Calc'!N52 -> 0 | H52: Dependents | J52: =+'Member Serviceability Calc'!N55 -> 0 | L52: Dependents | N52: =+'Member Serviceability Calc'!N58 -> 0 | P52: Dependents | R52: =+'Member Serviceability Calc'!N61 -> 0
D53: HEM Row Offset Value | F53: =IFERROR(VLOOKUP(F50,HEM!$A$20:$B$32,2,TRUE),0) -> 0 | H53: HEM Row Offset Value | J53: =IFERROR(VLOOKUP(J50,HEM!$A$20:$B$32,2,TRUE),0) -> 0 | L53: HEM Row Offset Value | N53: =IFERROR(VLOOKUP(N50,HEM!$A$20:$B$32,2,TRUE),0) -> 0 | P53: HEM Row Offset Value | R53: =IFERROR(VLOOKUP(R50,HEM!$A$20:$B$32,2,TRUE),0) -> 0
D54: HEM Column Offset Value | F54: =OFFSET($E$20,F52,F51) -> 0 | H54: HEM Column Offset Value | J54: =OFFSET($E$20,J52,J51) -> 0 | L54: HEM Column Offset Value | N54: =OFFSET($E$20,N52,N51) -> 0 | P54: HEM Column Offset Value | R54: =OFFSET($E$20,R52,R51) -> 0
D55: HEM Starting Value | F55: =OFFSET(B2,0,0) -> 1274 | H55: HEM Starting Value | J55: =OFFSET(B2,0,0) -> 1274 | L55: HEM Starting Value | N55: =OFFSET(J12,0,0) -> 4885 | P55: HEM Starting Value | R55: =OFFSET(N12,0,0) -> 6367
D56: HEM Min Living Expense | F56: =IF(F50=0, 0, OFFSET($B$2,F53,F54)) -> 0 | H56: HEM Min Living Expense | J56: =IF(J50=0,0,OFFSET($B$2,J53,J54)) -> 0 | L56: HEM Min Living Expense | N56: =IF(N50=0, 0, OFFSET($B$2,N53,N54)) -> 0 | P56: HEM Min Living Expense | R56: =IF(R50=0,0,OFFSET($B$2,R53,R54)) -> 0

Sheet Tables (hidden)
A2: Tax
G3: Flood Levy
A4: Wages Over | B4: Not to Exceed | C4: Tax Rate | G4: Taxable income | H4: Flood levy on this income
A5: 0 | B5: 18200 | C5: 0 | G5: $0 to $50,000 | H5: Nil | I5: 0 | J5: 50000 | K5: 0
A6: =B5+1 -> 18201 | B6: 45000 | C6: 0.19 | D6: =D5+C5*(B5-A5) -> 0 | G6: $50,001 to $100,000 | H6: Half a cent for each $1 over $50,000 | I6: 50001 | J6: 100000 | K6: 0 | L6: =(J6-J5)*K6 -> 0
A7: =B6+1 -> 45001 | B7: 120000 | C7: 0.325 | D7: =ROUNDUP(D6+C6*(B6-A6),0) -> 5092 | G7: Over $100,000 | H7: $250 plus 1c for each $1 over $100,000 | I7: =J6+1 -> 100001 | K7: 0
A8: =B7+1 -> 120001 | B8: 180000 | C8: 0.37 | D8: =ROUNDUP(D7+C7*(B7-A7),0) -> 29467
A9: =B8+1 -> 180001 | C9: 0.45 | D9: =ROUNDUP(D8+C8*(B8-A8),0) -> 51667
A12: Medicare Levy
G13: Taxable income | H13: Tax on this income
A14: 0 | B14: 16284 | C14: 0 | E14: not currently used | G14: 0 - $18,200 | H14: Nil
A15: 16284 | B15: 17604 | C15: 0.2 | G15: $18,201 - $37,000 | H15: 19c for each $1 over $18,200
A16: 17604+ | C16: 0.02 | G16: $37,001 - $90,000 | H16: $3,572 plus 32.5c for each $1 over $37,000
G17: $90,001 - $180,000 | H17: $17,547 plus 37c for each $1 over $87,000
G18: $180,001 and over | H18: $54,547 plus 45c for each $1 over $180,000
A20: Company Tax
A22: Rate | B22: 0.25
A28: APR Buffer | B28: 0.02
A29: Minimum Rate | B29: 0.07
A31: RedZed Loan Applied For: Repayment With Buffer | C31: Buffered % | D31: Minimum % | E31: Rate % | F31: Buffer % | G31: Buffered % | H31: Total Term | I31: Interest Only Term | J31: Net Term | K31: Amount
A32: Buffered Loan 1 | B32: =IF(Serviceability!J56=0,0,-PMT((D32)/12,J32*12,Serviceability!I56)) -> 0 | C32: =G32 -> 0.02 | D32: =IF(C32>=$B$29,C32,$B$29) -> 0.07 | E32: =Serviceability!L56 -> 0 | F32: =$B$28 -> 0.02 | G32: =E32+F32 -> 0.02 | H32: =Serviceability!J56 -> 0 | I32: =Serviceability!K56 -> 0 | J32: =H32-I32 -> 0 | K32: =Serviceability!I56 -> 0
A33: Buffered Loan 2 | B33: =IF(Serviceability!J57=0,0,-PMT((D33)/12,J33*12,Serviceability!I57)) -> 0 | C33: =G33 -> 0.02 | D33: =IF(C33>=$B$29,C33,$B$29) -> 0.07 | E33: =Serviceability!L57 -> 0 | F33: =$B$28 -> 0.02 | G33: =E33+F33 -> 0.02 | H33: =Serviceability!J57 -> 0 | I33: =Serviceability!K57 -> 0 | J33: =H33-I33 -> 0
A34: Buffered Loan 3 | B34: =IF(Serviceability!J58=0,0,-PMT((D34)/12,J34*12,Serviceability!I58)) -> 0 | C34: =G34 -> 0.02 | D34: =IF(C34>=$B$29,C34,$B$29) -> 0.07 | E34: =Serviceability!L58 -> 0 | F34: =$B$28 -> 0.02 | G34: =E34+F34 -> 0.02 | H34: =Serviceability!J58 -> 0 | I34: =Serviceability!K58 -> 0 | J34: =H34-I34 -> 0 | K34: =Serviceability!I58 -> 0
A37: Existing Loan: Repayment With Buffer
A38: Buffered Loan 1 | B38: 0.2 | C38: =Serviceability!N61*(1+Tables!B38) -> 0 | G38: =Serviceability!N61 -> 0 | H38: =Serviceability!E61 -> Loan 1 - Existing Secured
A39: Buffered Loan 2 | B39: 0.2 | C39: =Serviceability!N62*(1+Tables!B39) -> 0 | G39: =Serviceability!N62 -> 0 | H39: =Serviceability!E62 -> Loan 2 - Existing Secured
A42: Additional Fees for Serviceability
A43: Fees - Loan 1 | B43: 15 | C43: =IF(Serviceability!N56=0,0,15) -> 0 | D43: Monthly Account Keeping Fee Resi
A44: Fees - Loan 2 | B44: 15 | C44: =IF(Serviceability!N57=0,0,15) -> 0 | D44: Monthly Account Keeping Fee Resi
A45: Fees - Loan 3 | B45: 15 | C45: =IF(Serviceability!N58=0,0,15) -> 0 | D45: Monthly Account Keeping Fee Resi
A49: Column1 | B49: Single Adult | C49: Single Adult + 1 Dependant | D49: Single Adult + 2 Dependants | E49: Single Adult + 3 Dependants | F49: Single Adult + 4 Dependants | G49: Single Adult + 5 Dependants | H49: Single Adult + 6 Dependants | I49: Couple | J49: Couple + 1 Dependant | K49: Couple + 2 Dependants | L49: Couple + 3 Dependants | M49: Couple + 4 Dependants | N49: Couple + 5 Dependants | O49: Couple + 6 Dependants
A50: Income Range ($) | B50: Proposed Benchmark | C50: Proposed Benchmark | D50: Proposed Benchmark | E50: Proposed Benchmark | F50: Proposed Benchmark | G50: Proposed Benchmark | H50: Proposed Benchmark | I50: Proposed Benchmark | J50: Proposed Benchmark | K50: Proposed Benchmark | L50: Proposed Benchmark | M50: Proposed Benchmark | N50: Proposed Benchmark | O50: Proposed Benchmark
A51: 0 - 25,000 | B51: 1246.505055 | C51: 1761.068893 | D51: 2255.302548 | E51: 2809.026141 | F51: 3225.463307 | G51: 3937.586206 | H51: 4637.350029 | I51: 2447.200868 | J51: 2885.704413 | K51: 3200.928984 | L51: 3558.475251 | M51: 4156.770327 | N51: 4505.924489 | O51: 4855.078651
A52: 25,001 - 37,000 | B52: 1320.646605 | C52: 1761.068893 | D52: 2255.302548 | E52: 2809.026141 | F52: 3225.463307 | G52: 3937.586206 | H52: 4637.350029 | I52: 2447.200868 | J52: 2885.704413 | K52: 3200.928984 | L52: 3558.475251 | M52: 4156.770327 | N52: 4505.924489 | O52: 4855.078651
A53: 37,001 - 50,000 | B53: 1380.559721 | C53: 1820.88421 | D53: 2314.955176 | E53: 2809.026141 | F53: 3225.463307 | G53: 3937.586206 | H53: 4637.350029 | I53: 2507.025896 | J53: 2885.704413 | K53: 3200.928984 | L53: 3558.475251 | M53: 4156.770327 | N53: 4505.924489 | O53: 4855.078651
A54: 50,001 - 62,000 | B54: 1466.303643 | C54: 1906.488263 | D54: 2400.326208 | E54: 2894.164153 | F54: 3310.50285 | G54: 3937.586206 | H54: 4637.350029 | I54: 2592.643847 | J54: 2971.241314 | K54: 3286.563241 | L54: 3558.475251 | M54: 4156.770327 | N54: 4505.924489 | O54: 4855.078651
A55: 62,001 - 74,000 | B55: 1634.059875 | C55: 2073.970903 | D55: 2567.352829 | E55: 3060.734754 | F55: 3476.88094 | G55: 3937.586206 | H55: 4637.350029 | I55: 2760.153678 | J55: 3138.592926 | K55: 3454.104933 | L55: 3726.296512 | M55: 4156.770327 | N55: 4505.924489 | O55: 4855.078651
A56: 74,001 - 99,000 | B56: 1876.100709 | C56: 2315.617048 | D56: 2808.341081 | E56: 3301.065114 | F56: 3716.933589 | G56: 4177.141809 | H56: 4637.350029 | I56: 3001.839055 | J56: 3380.049729 | K56: 3695.836178 | L56: 3968.431121 | M56: 4398.381176 | N56: 4747.516706 | O56: 5096.652236
A57: 99,001 - 124,000 | B57: 2222.408429 | C57: 2661.359738 | D57: 3153.14255 | E57: 3644.925362 | F57: 4060.396003 | G57: 4519.892897 | H57: 4979.38979 | I57: 3347.637877 | J57: 3725.521683 | K57: 4041.701097 | L57: 4314.873167 | M57: 4744.074117 | N57: 5093.183176 | O57: 5442.292236
A58: 124,001 - 149,000 | B58: 2544.157179 | C58: 2982.583915 | D58: 3473.4921 | E58: 3964.400284 | F58: 4379.501931 | G58: 4838.338119 | H58: 5297.174307 | I58: 3668.914205 | J58: 4046.494324 | K58: 4363.038531 | L58: 4636.7468 | M58: 5065.251735 | N58: 5414.336117 | O58: 5763.4205
A59: 149,001 - 173,000 | B59: 2926.857808 | C59: 3364.660277 | D59: 3854.528321 | E59: 4344.396365 | F59: 4759.058578 | G59: 5217.10877 | H59: 5675.158963 | I59: 4051.052597 | J59: 4428.271499 | K59: 4745.249781 | L59: 5019.595746 | M59: 5447.272877 | N59: 5796.327947 | O59: 6145.383017
A60: 173,001 - 198,000 | B60: 3117.712978 | C60: 3555.204081 | D60: 4044.553121 | E60: 4533.902161 | F60: 4948.345292 | G60: 5406.00337 | H60: 5863.661448 | I60: 4241.627497 | J60: 4618.666177 | K60: 4935.860575 | L60: 5210.524923 | M60: 5637.788867 | N60: 5986.82921 | O60: 6335.869552
A61: 198,001 - 248,000 | B61: 3328.095918 | C61: 3765.244045 | D61: 4254.021402 | E61: 4742.798758 | F61: 5157.000562 | G61: 5614.226722 | H61: 6071.452883 | I61: 4451.701321 | J61: 4828.541508 | K61: 5145.974808 | L61: 5420.989522 | M61: 5847.798651 | N61: 6196.822984 | O61: 6545.847316
A62: 248,001 - 309,000 | B62: 3876.240372 | C62: 4312.494553 | D62: 4799.781835 | E62: 5287.069116 | F62: 5700.64192 | G62: 6156.742307 | H62: 6612.842694 | I62: 4999.040435 | J62: 5375.363249 | K62: 5693.418161 | L62: 5969.346366 | M62: 6394.969751 | N62: 6743.95208 | O62: 7092.934409
A63: 309,000 - 371,000 | B63: 4402.163142 | C63: 4837.559541 | D63: 5323.417468 | E63: 5809.275396 | F63: 6222.244449 | G63: 6677.264775 | H63: 7132.285102 | I63: 5524.190828 | J63: 5900.017242 | K63: 6218.668568 | L63: 6495.473231 | M63: 6919.958941 | N63: 7268.900969 | O63: 7617.842997
A64: 371,001 - 619,000 | B64: 4582.973582 | C64: 5018.075078 | D64: 5503.441384 | E64: 5988.80769 | F64: 6401.569271 | G64: 6856.218193 | H64: 7310.867115 | I64: 5704.735673 | J64: 6080.391426 | K64: 6399.247797 | L64: 6676.353783 | M64: 7100.448364 | N64: 7449.376537 | O64: 7798.30471
A70: Household 1
A71: Household 2 | B71: Monthly Income | F71: Other Income | H71: Company
B73: Household 1 | C73: Household 2 | F73: Household 1 | G73: Household 2 | I73: Always Household 1
A74: Applicant / Guarantor 1 | B74: =IF(EXACT(Serviceability!E13, "Household 1"),Serviceability!I13,0) -> 0 | C74: =IF(EXACT(Serviceability!E13, "Household 2"),Serviceability!I13,0) -> 0 | E74: Applicant / Guarantor 1 | F74: =IF(EXACT(Serviceability!H19, "Household 1"),Serviceability!N19,0) -> 0 | G74: =IF(EXACT(Serviceability!H19, "Household 2"),Serviceability!N19,0) -> 0 | H74: Applicant / Guarantor 1 | I74: =Serviceability!I30 -> 0
A75: Applicant / Guarantor 2 | B75: =IF(EXACT(Serviceability!E14, "Household 1"),Serviceability!I14,0) -> 0 | C75: =IF(EXACT(Serviceability!E14, "Household 2"),Serviceability!I14,0) -> 0 | E75: Applicant / Guarantor 2 | F75: =IF(EXACT(Serviceability!H20, "Household 1"),Serviceability!N20,0) -> 0 | G75: =IF(EXACT(Serviceability!H20, "Household 2"),Serviceability!N20,0) -> 0
A76: Applicant / Guarantor 3 | B76: =IF(EXACT(Serviceability!E15, "Household 1"),Serviceability!I15,0) -> 0 | C76: =IF(EXACT(Serviceability!E15, "Household 2"),Serviceability!I15,0) -> 0 | E76: Applicant / Guarantor 3 | F76: =IF(EXACT(Serviceability!H21, "Household 1"),Serviceability!N21,0) -> 0 | G76: =IF(EXACT(Serviceability!H21, "Household 2"),Serviceability!N21,0) -> 0
A77: Applicant / Guarantor 4 | B77: =IF(EXACT(Serviceability!E16, "Household 1"),Serviceability!I16,0) -> 0 | C77: =IF(EXACT(Serviceability!E16, "Household 2"),Serviceability!I16,0) -> 0 | E77: Applicant / Guarantor 4 | F77: =IF(EXACT(Serviceability!H22, "Household 1"),Serviceability!N22,0) -> 0 | G77: =IF(EXACT(Serviceability!H22, "Household 2"),Serviceability!N22,0) -> 0
A78: Applicant Totals | B78: =SUM(B74:B77,F78,I74) -> 0 | C78: =SUM(C74:C77,G78) -> 0 | E78: Applicant Totals | F78: =SUM(F74:F77)*12 -> 0 | G78: =SUM(G74:G77)*12 -> 0
A80: Adults - household | C80: =IF(C78<=59999,"test",IF(B3>93,"A",IF(B3>89,"A-",IF(B3>87,"B+",IF(B3>83,"B",IF(B3>79,"B-", IF(B3>77,"C+",IF(B3>73,"C",IF(B3>69,"C-",IF(B3>57,"D+",IF(B3>53,"D",IF(B3>49,"D-","")))))))))))) -> test
A81: Adults - household - new
A82: Dependant children - household
A84: Adult | B84: =Serviceability!I42 -> 0 | C84: =Serviceability!I44 -> 0 | E84: =IF(Serviceability!I42>2, "Please call 1300 722 462 for assistance with calculation "," ") ->  | N84: offset amount
A85: Dependent | B85: =Serviceability!I43 -> 0 | C85: =Serviceability!I45 -> 0 | E85: =IF(Serviceability!I44>2, "Please call 1300 722 462 for assistance with calculation "," ") -> 
B86: ="Adult-" & B84 & ",Dependents-" & B85 -> Adult-0,Dependents-0 | C86: ="Adult-" & C84 & ",Dependents-" & C85 -> Adult-0,Dependents-0
A88: LookupKey | B88: Household | C88: Income Range | D88: Living Expense
A89: =B89 & ":" & C89 -> Adult-1,Dependents-0:0 - 25,000 | B89: Adult-1,Dependents-0 | C89: 0 - 25,000 | D89: 1246.505055
A90: =B90 & ":" & C90 -> Adult-1,Dependents-0:25,001 - 37,000 | B90: Adult-1,Dependents-0 | C90: 25,001 - 37,000 | D90: 1320.646605
A91: Adult-1,Dependents-0:37,001 - 50,000 | B91: Adult-1,Dependents-0 | C91: 37,001 - 50,000 | D91: 1380.559721
A92: Adult-1,Dependents-0:50,001 - 62,000 | B92: Adult-1,Dependents-0 | C92: 50,001 - 62,000 | D92: 1466.303643
A93: Adult-1,Dependents-0:62,001 - 74,000 | B93: Adult-1,Dependents-0 | C93: 62,001 - 74,000 | D93: 1634.059875
A94: Adult-1,Dependents-0:74,001 - 99,000 | B94: Adult-1,Dependents-0 | C94: 74,001 - 99,000 | D94: 1876.100709
A95: Adult-1,Dependents-0:99,001 - 124,000 | B95: Adult-1,Dependents-0 | C95: 99,001 - 124,000 | D95: 2222.408429
A96: Adult-1,Dependents-0:124,001 - 149,000 | B96: Adult-1,Dependents-0 | C96: 124,001 - 149,000 | D96: 2544.157179
A97: Adult-1,Dependents-0:149,001 - 173,000 | B97: Adult-1,Dependents-0 | C97: 149,001 - 173,000 | D97: 2926.857808
A98: Adult-1,Dependents-0:173,001 - 198,000 | B98: Adult-1,Dependents-0 | C98: 173,001 - 198,000 | D98: 3117.712978
A99: Adult-1,Dependents-0:198,001 - 248,000 | B99: Adult-1,Dependents-0 | C99: 198,001 - 248,000 | D99: 3328.095918
A100: Adult-1,Dependents-0:248,001 - 309,000 | B100: Adult-1,Dependents-0 | C100: 248,001 - 309,000 | D100: 3876.240372
A101: Adult-1,Dependents-0:309,000 - 371,000 | B101: Adult-1,Dependents-0 | C101: 309,000 - 371,000 | D101: 4402.163142
A102: Adult-1,Dependents-0:371,001 - 619,000 | B102: Adult-1,Dependents-0 | C102: 371,001 - 619,000 | D102: 4582.973582
A104: Adult-1,Dependents-1:0 - 25,000 | B104: Adult-1,Dependents-1 | C104: 0 - 25,000 | D104: 1761.068893
A105: Adult-1,Dependents-1:25,001 - 37,000 | B105: Adult-1,Dependents-1 | C105: 25,001 - 37,000 | D105: 1761.068893
A106: Adult-1,Dependents-1:37,001 - 50,000 | B106: Adult-1,Dependents-1 | C106: 37,001 - 50,000 | D106: 1820.88421
A107: Adult-1,Dependents-1:50,001 - 62,000 | B107: Adult-1,Dependents-1 | C107: 50,001 - 62,000 | D107: 1906.488263
A108: Adult-1,Dependents-1:62,001 - 74,000 | B108: Adult-1,Dependents-1 | C108: 62,001 - 74,000 | D108: 2073.970903
A109: Adult-1,Dependents-1:74,001 - 99,000 | B109: Adult-1,Dependents-1 | C109: 74,001 - 99,000 | D109: 2315.617048
A110: Adult-1,Dependents-1:99,001 - 124,000 | B110: Adult-1,Dependents-1 | C110: 99,001 - 124,000 | D110: 2661.359738
A111: Adult-1,Dependents-1:124,001 - 149,000 | B111: Adult-1,Dependents-1 | C111: 124,001 - 149,000 | D111: 2982.583915
A112: Adult-1,Dependents-1:149,001 - 173,000 | B112: Adult-1,Dependents-1 | C112: 149,001 - 173,000 | D112: 3364.660277
A113: Adult-1,Dependents-1:173,001 - 198,000 | B113: Adult-1,Dependents-1 | C113: 173,001 - 198,000 | D113: 3555.204081
A114: Adult-1,Dependents-1:198,001 - 248,000 | B114: Adult-1,Dependents-1 | C114: 198,001 - 248,000 | D114: 3765.244045
A115: Adult-1,Dependents-1:248,001 - 309,000 | B115: Adult-1,Dependents-1 | C115: 248,001 - 309,000 | D115: 4312.494553
A116: Adult-1,Dependents-1:309,000 - 371,000 | B116: Adult-1,Dependents-1 | C116: 309,000 - 371,000 | D116: 4837.559541
A117: Adult-1,Dependents-1:371,001 - 619,000 | B117: Adult-1,Dependents-1 | C117: 371,001 - 619,000 | D117: 5018.075078
A119: =B119 & ":" & C119 -> Adult-1,Dependents-2:0 - 25,000 | B119: Adult-1,Dependents-2 | C119: 0 - 25,000 | D119: 2255.302548
A120: Adult-1,Dependents-2:25,001 - 37,000 | B120: Adult-1,Dependents-2 | C120: 25,001 - 37,000 | D120: 2255.302548
A121: Adult-1,Dependents-2:37,001 - 50,000 | B121: Adult-1,Dependents-2 | C121: 37,001 - 50,000 | D121: 2314.955176
A122: Adult-1,Dependents-2:50,001 - 62,000 | B122: Adult-1,Dependents-2 | C122: 50,001 - 62,000 | D122: 2400.326208
A123: Adult-1,Dependents-2:62,001 - 74,000 | B123: Adult-1,Dependents-2 | C123: 62,001 - 74,000 | D123: 2567.352829
A124: Adult-1,Dependents-2:74,001 - 99,000 | B124: Adult-1,Dependents-2 | C124: 74,001 - 99,000 | D124: 2808.341081
A125: Adult-1,Dependents-2:99,001 - 124,000 | B125: Adult-1,Dependents-2 | C125: 99,001 - 124,000 | D125: 3153.14255
A126: Adult-1,Dependents-2:124,001 - 149,000 | B126: Adult-1,Dependents-2 | C126: 124,001 - 149,000 | D126: 3473.4921
A127: Adult-1,Dependents-2:149,001 - 173,000 | B127: Adult-1,Dependents-2 | C127: 149,001 - 173,000 | D127: 3854.528321
A128: Adult-1,Dependents-2:173,001 - 198,000 | B128: Adult-1,Dependents-2 | C128: 173,001 - 198,000 | D128: 4044.553121
A129: Adult-1,Dependents-2:198,001 - 248,000 | B129: Adult-1,Dependents-2 | C129: 198,001 - 248,000 | D129: 4254.021402
A130: Adult-1,Dependents-2:248,001 - 309,000 | B130: Adult-1,Dependents-2 | C130: 248,001 - 309,000 | D130: 4799.781835
A131: Adult-1,Dependents-2:309,000 - 371,000 | B131: Adult-1,Dependents-2 | C131: 309,000 - 371,000 | D131: 5323.417468
A132: Adult-1,Dependents-2:371,001 - 619,000 | B132: Adult-1,Dependents-2 | C132: 371,001 - 619,000 | D132: 5503.441384
A134: =B134 & ":" & C134 -> Adult-1,Dependents-3:0 - 25,000 | B134: Adult-1,Dependents-3 | C134: 0 - 25,000 | D134: 2809.026141
A135: Adult-1,Dependents-3:25,001 - 37,000 | B135: Adult-1,Dependents-3 | C135: 25,001 - 37,000 | D135: 2809.026141
A136: Adult-1,Dependents-3:37,001 - 50,000 | B136: Adult-1,Dependents-3 | C136: 37,001 - 50,000 | D136: 2809.026141
A137: Adult-1,Dependents-3:50,001 - 62,000 | B137: Adult-1,Dependents-3 | C137: 50,001 - 62,000 | D137: 2894.164153
A138: Adult-1,Dependents-3:62,001 - 74,000 | B138: Adult-1,Dependents-3 | C138: 62,001 - 74,000 | D138: 3060.734754
A139: Adult-1,Dependents-3:74,001 - 99,000 | B139: Adult-1,Dependents-3 | C139: 74,001 - 99,000 | D139: 3301.065114
A140: Adult-1,Dependents-3:99,001 - 124,000 | B140: Adult-1,Dependents-3 | C140: 99,001 - 124,000 | D140: 3644.925362
A141: Adult-1,Dependents-3:124,001 - 149,000 | B141: Adult-1,Dependents-3 | C141: 124,001 - 149,000 | D141: 3964.400284
A142: Adult-1,Dependents-3:149,001 - 173,000 | B142: Adult-1,Dependents-3 | C142: 149,001 - 173,000 | D142: 4344.396365
A143: Adult-1,Dependents-3:173,001 - 198,000 | B143: Adult-1,Dependents-3 | C143: 173,001 - 198,000 | D143: 4533.902161
A144: Adult-1,Dependents-3:198,001 - 248,000 | B144: Adult-1,Dependents-3 | C144: 198,001 - 248,000 | D144: 4742.798758
A145: Adult-1,Dependents-3:248,001 - 309,000 | B145: Adult-1,Dependents-3 | C145: 248,001 - 309,000 | D145: 5287.069116
A146: Adult-1,Dependents-3:309,000 - 371,000 | B146: Adult-1,Dependents-3 | C146: 309,000 - 371,000 | D146: 5809.275396
A147: Adult-1,Dependents-3:371,001 - 619,000 | B147: Adult-1,Dependents-3 | C147: 371,001 - 619,000 | D147: 5988.80769
A150: =B150 & ":" & C150 -> Adult-1,Dependents-4:0 - 25,000 | B150: Adult-1,Dependents-4 | C150: 0 - 25,000 | D150: 3225.463307
A151: Adult-1,Dependents-4:25,001 - 37,000 | B151: Adult-1,Dependents-4 | C151: 25,001 - 37,000 | D151: 3225.463307
A152: Adult-1,Dependents-4:37,001 - 50,000 | B152: Adult-1,Dependents-4 | C152: 37,001 - 50,000 | D152: 3225.463307
A153: Adult-1,Dependents-4:50,001 - 62,000 | B153: Adult-1,Dependents-4 | C153: 50,001 - 62,000 | D153: 3310.50285
A154: Adult-1,Dependents-4:62,001 - 74,000 | B154: Adult-1,Dependents-4 | C154: 62,001 - 74,000 | D154: 3476.88094
A155: Adult-1,Dependents-4:74,001 - 99,000 | B155: Adult-1,Dependents-4 | C155: 74,001 - 99,000 | D155: 3716.933589
A156: Adult-1,Dependents-4:99,001 - 124,000 | B156: Adult-1,Dependents-4 | C156: 99,001 - 124,000 | D156: 4060.396003
A157: Adult-1,Dependents-4:124,001 - 149,000 | B157: Adult-1,Dependents-4 | C157: 124,001 - 149,000 | D157: 4379.501931
A158: Adult-1,Dependents-4:149,001 - 173,000 | B158: Adult-1,Dependents-4 | C158: 149,001 - 173,000 | D158: 4759.058578
A159: Adult-1,Dependents-4:173,001 - 198,000 | B159: Adult-1,Dependents-4 | C159: 173,001 - 198,000 | D159: 4948.345292
A160: Adult-1,Dependents-4:198,001 - 248,000 | B160: Adult-1,Dependents-4 | C160: 198,001 - 248,000 | D160: 5157.000562
A161: Adult-1,Dependents-4:248,001 - 309,000 | B161: Adult-1,Dependents-4 | C161: 248,001 - 309,000 | D161: 5700.64192
A162: Adult-1,Dependents-4:309,000 - 371,000 | B162: Adult-1,Dependents-4 | C162: 309,000 - 371,000 | D162: 6222.244449
A163: Adult-1,Dependents-4:371,001 - 619,000 | B163: Adult-1,Dependents-4 | C163: 371,001 - 619,000 | D163: 6401.569271
A165: =B165 & ":" & C165 -> Adult-1,Dependents-5:0 - 25,000 | B165: Adult-1,Dependents-5 | C165: 0 - 25,000 | D165: 3937.586206
A166: Adult-1,Dependents-5:25,001 - 37,000 | B166: Adult-1,Dependents-5 | C166: 25,001 - 37,000 | D166: 3937.586206
A167: Adult-1,Dependents-5:37,001 - 50,000 | B167: Adult-1,Dependents-5 | C167: 37,001 - 50,000 | D167: 3937.586206
A168: Adult-1,Dependents-5:50,001 - 62,000 | B168: Adult-1,Dependents-5 | C168: 50,001 - 62,000 | D168: 3937.586206
A169: Adult-1,Dependents-5:62,001 - 74,000 | B169: Adult-1,Dependents-5 | C169: 62,001 - 74,000 | D169: 3937.586206
A170: Adult-1,Dependents-5:74,001 - 99,000 | B170: Adult-1,Dependents-5 | C170: 74,001 - 99,000 | D170: 4177.141809
A171: Adult-1,Dependents-5:99,001 - 124,000 | B171: Adult-1,Dependents-5 | C171: 99,001 - 124,000 | D171: 4519.892897
A172: Adult-1,Dependents-5:124,001 - 149,000 | B172: Adult-1,Dependents-5 | C172: 124,001 - 149,000 | D172: 4838.338119
A173: Adult-1,Dependents-5:149,001 - 173,000 | B173: Adult-1,Dependents-5 | C173: 149,001 - 173,000 | D173: 5217.10877
A174: Adult-1,Dependents-5:173,001 - 198,000 | B174: Adult-1,Dependents-5 | C174: 173,001 - 198,000 | D174: 5406.00337
A175: Adult-1,Dependents-5:198,001 - 248,000 | B175: Adult-1,Dependents-5 | C175: 198,001 - 248,000 | D175: 5614.226722
A176: Adult-1,Dependents-5:248,001 - 309,000 | B176: Adult-1,Dependents-5 | C176: 248,001 - 309,000 | D176: 6156.742307
A177: Adult-1,Dependents-5:309,000 - 371,000 | B177: Adult-1,Dependents-5 | C177: 309,000 - 371,000 | D177: 6677.264775
A178: Adult-1,Dependents-5:371,001 - 619,000 | B178: Adult-1,Dependents-5 | C178: 371,001 - 619,000 | D178: 6856.218193
A180: =B180 & ":" & C180 -> Adult-1,Dependents-6:0 - 25,000 | B180: Adult-1,Dependents-6 | C180: 0 - 25,000 | D180: 4637.350029
A181: Adult-1,Dependents-6:25,001 - 37,000 | B181: Adult-1,Dependents-6 | C181: 25,001 - 37,000 | D181: 4637.350029
A182: Adult-1,Dependents-6:37,001 - 50,000 | B182: Adult-1,Dependents-6 | C182: 37,001 - 50,000 | D182: 4637.350029
A183: Adult-1,Dependents-6:50,001 - 62,000 | B183: Adult-1,Dependents-6 | C183: 50,001 - 62,000 | D183: 4637.350029
A184: Adult-1,Dependents-6:62,001 - 74,000 | B184: Adult-1,Dependents-6 | C184: 62,001 - 74,000 | D184: 4637.350029
A185: Adult-1,Dependents-6:74,001 - 99,000 | B185: Adult-1,Dependents-6 | C185: 74,001 - 99,000 | D185: 4637.350029
A186: Adult-1,Dependents-6:99,001 - 124,000 | B186: Adult-1,Dependents-6 | C186: 99,001 - 124,000 | D186: 4979.38979
A187: Adult-1,Dependents-6:124,001 - 149,000 | B187: Adult-1,Dependents-6 | C187: 124,001 - 149,000 | D187: 5297.174307
A188: Adult-1,Dependents-6:149,001 - 173,000 | B188: Adult-1,Dependents-6 | C188: 149,001 - 173,000 | D188: 5675.158963
A189: Adult-1,Dependents-6:173,001 - 198,000 | B189: Adult-1,Dependents-6 | C189: 173,001 - 198,000 | D189: 5863.661448
A190: Adult-1,Dependents-6:198,001 - 248,000 | B190: Adult-1,Dependents-6 | C190: 198,001 - 248,000 | D190: 6071.452883
A191: Adult-1,Dependents-6:248,001 - 309,000 | B191: Adult-1,Dependents-6 | C191: 248,001 - 309,000 | D191: 6612.842694
A192: Adult-1,Dependents-6:309,000 - 371,000 | B192: Adult-1,Dependents-6 | C192: 309,000 - 371,000 | D192: 7132.285102
A193: Adult-1,Dependents-6:371,001 - 619,000 | B193: Adult-1,Dependents-6 | C193: 371,001 - 619,000 | D193: 7310.867115
A195: =B195 & ":" & C195 -> Adult-2,Dependents-0:0 - 25,000 | B195: Adult-2,Dependents-0 | C195: 0 - 25,000 | D195: 2447.200868
A196: =B196 & ":" & C196 -> Adult-2,Dependents-0:25,001 - 37,000 | B196: Adult-2,Dependents-0 | C196: 25,001 - 37,000 | D196: 2447.200868
A197: Adult-2,Dependents-0:37,001 - 50,000 | B197: Adult-2,Dependents-0 | C197: 37,001 - 50,000 | D197: 2507.025896
A198: Adult-2,Dependents-0:50,001 - 62,000 | B198: Adult-2,Dependents-0 | C198: 50,001 - 62,000 | D198: 2592.643847
A199: Adult-2,Dependents-0:62,001 - 74,000 | B199: Adult-2,Dependents-0 | C199: 62,001 - 74,000 | D199: 2760.153678
A200: Adult-2,Dependents-0:74,001 - 99,000 | B200: Adult-2,Dependents-0 | C200: 74,001 - 99,000 | D200: 3001.839055
A201: Adult-2,Dependents-0:99,001 - 124,000 | B201: Adult-2,Dependents-0 | C201: 99,001 - 124,000 | D201: 3347.637877
A202: Adult-2,Dependents-0:124,001 - 149,000 | B202: Adult-2,Dependents-0 | C202: 124,001 - 149,000 | D202: 3668.914205
A203: Adult-2,Dependents-0:149,001 - 173,000 | B203: Adult-2,Dependents-0 | C203: 149,001 - 173,000 | D203: 4051.052597
A204: Adult-2,Dependents-0:173,001 - 198,000 | B204: Adult-2,Dependents-0 | C204: 173,001 - 198,000 | D204: 4241.627497
A205: Adult-2,Dependents-0:198,001 - 248,000 | B205: Adult-2,Dependents-0 | C205: 198,001 - 248,000 | D205: 4451.701321
A206: Adult-2,Dependents-0:248,001 - 309,000 | B206: Adult-2,Dependents-0 | C206: 248,001 - 309,000 | D206: 4999.040435
A207: Adult-2,Dependents-0:309,000 - 371,000 | B207: Adult-2,Dependents-0 | C207: 309,000 - 371,000 | D207: 5524.190828
A208: Adult-2,Dependents-0:371,001 - 619,000 | B208: Adult-2,Dependents-0 | C208: 371,001 - 619,000 | D208: 5704.735673
A210: =B210 & ":" & C210 -> Adult-2,Dependents-1:0 - 25,000 | B210: Adult-2,Dependents-1 | C210: 0 - 25,000 | D210: 2885.704413
A211: Adult-2,Dependents-1:25,001 - 37,000 | B211: Adult-2,Dependents-1 | C211: 25,001 - 37,000 | D211: 2885.704413
A212: Adult-2,Dependents-1:37,001 - 50,000 | B212: Adult-2,Dependents-1 | C212: 37,001 - 50,000 | D212: 2885.704413
A213: Adult-2,Dependents-1:50,001 - 62,000 | B213: Adult-2,Dependents-1 | C213: 50,001 - 62,000 | D213: 2971.241314
A214: Adult-2,Dependents-1:62,001 - 74,000 | B214: Adult-2,Dependents-1 | C214: 62,001 - 74,000 | D214: 3138.592926
A215: Adult-2,Dependents-1:74,001 - 99,000 | B215: Adult-2,Dependents-1 | C215: 74,001 - 99,000 | D215: 3380.049729
A216: Adult-2,Dependents-1:99,001 - 124,000 | B216: Adult-2,Dependents-1 | C216: 99,001 - 124,000 | D216: 3725.521683
A217: Adult-2,Dependents-1:124,001 - 149,000 | B217: Adult-2,Dependents-1 | C217: 124,001 - 149,000 | D217: 4046.494324
A218: Adult-2,Dependents-1:149,001 - 173,000 | B218: Adult-2,Dependents-1 | C218: 149,001 - 173,000 | D218: 4428.271499
A219: Adult-2,Dependents-1:173,001 - 198,000 | B219: Adult-2,Dependents-1 | C219: 173,001 - 198,000 | D219: 4618.666177
A220: Adult-2,Dependents-1:198,001 - 248,000 | B220: Adult-2,Dependents-1 | C220: 198,001 - 248,000 | D220: 4828.541508
A221: Adult-2,Dependents-1:248,001 - 309,000 | B221: Adult-2,Dependents-1 | C221: 248,001 - 309,000 | D221: 5375.363249
A222: Adult-2,Dependents-1:309,000 - 371,000 | B222: Adult-2,Dependents-1 | C222: 309,000 - 371,000 | D222: 5900.017242
A223: Adult-2,Dependents-1:371,001 - 619,000 | B223: Adult-2,Dependents-1 | C223: 371,001 - 619,000 | D223: 6080.391426
A225: =B225 & ":" & C225 -> Adult-2,Dependents-2:0 - 25,000 | B225: Adult-2,Dependents-2 | C225: 0 - 25,000 | D225: 3200.928984
A226: Adult-2,Dependents-2:25,001 - 37,000 | B226: Adult-2,Dependents-2 | C226: 25,001 - 37,000 | D226: 3200.928984
A227: Adult-2,Dependents-2:37,001 - 50,000 | B227: Adult-2,Dependents-2 | C227: 37,001 - 50,000 | D227: 3200.928984
A228: Adult-2,Dependents-2:50,001 - 62,000 | B228: Adult-2,Dependents-2 | C228: 50,001 - 62,000 | D228: 3286.563241
A229: Adult-2,Dependents-2:62,001 - 74,000 | B229: Adult-2,Dependents-2 | C229: 62,001 - 74,000 | D229: 3454.104933
A230: Adult-2,Dependents-2:74,001 - 99,000 | B230: Adult-2,Dependents-2 | C230: 74,001 - 99,000 | D230: 3695.836178
A231: Adult-2,Dependents-2:99,001 - 124,000 | B231: Adult-2,Dependents-2 | C231: 99,001 - 124,000 | D231: 4041.701097
A232: Adult-2,Dependents-2:124,001 - 149,000 | B232: Adult-2,Dependents-2 | C232: 124,001 - 149,000 | D232: 4363.038531
A233: Adult-2,Dependents-2:149,001 - 173,000 | B233: Adult-2,Dependents-2 | C233: 149,001 - 173,000 | D233: 4745.249781
A234: Adult-2,Dependents-2:173,001 - 198,000 | B234: Adult-2,Dependents-2 | C234: 173,001 - 198,000 | D234: 4935.860575
A235: Adult-2,Dependents-2:198,001 - 248,000 | B235: Adult-2,Dependents-2 | C235: 198,001 - 248,000 | D235: 5145.974808
A236: Adult-2,Dependents-2:248,001 - 309,000 | B236: Adult-2,Dependents-2 | C236: 248,001 - 309,000 | D236: 5693.418161
A237: Adult-2,Dependents-2:309,000 - 371,000 | B237: Adult-2,Dependents-2 | C237: 309,000 - 371,000 | D237: 6218.668568
... 123 more rows

Sheet Serviceability Calc (hidden)
A1: Serviceability Cell Calculation
B3: =Serviceability!D50&" (After Tax Rates Applied)" -> Available Income (After Tax Rates Applied) | C3: =Serviceability!N50 -> 849.3333333 | F3: ='SMSF Serviceability Calculator'!D45&" (After Tax Rates Applied)" -> Available Income (After Tax Rates Applied) | G3: ='SMSF Serviceability Calculator'!N45 -> -166.6666667 | J3: Household 1 | K3: ='SMSF Serviceability Calculator'!N80 -> 0
B4: Divided by | F4: Divided by | J4: Household 2 | K4: ='SMSF Serviceability Calculator'!N81 -> 0
B5: =Serviceability!D73 -> Total Monthly Commitments | C5: =SUM(Serviceability!N56:N72) -> 0 | F5: ='SMSF Serviceability Calculator'!D64 -> Total Monthly Commitments | G5: ='SMSF Serviceability Calculator'!N64 -> 0 | J5: Household 3 | K5: ='SMSF Serviceability Calculator'!N82 -> 0
A6: Less | B6: =Serviceability!$D$54&" - "&Serviceability!E56 -> RedZed Loan Applied For - Loan 1 | C6: =-Serviceability!N56 -> 0 | E6: Less | F6: =Serviceability!$D$54&" - "&'SMSF Serviceability Calculator'!E51 -> RedZed Loan Applied For - New RedZed Loan | G6: =-'SMSF Serviceability Calculator'!N51 -> 0 | J6: Household 4 | K6: ='SMSF Serviceability Calculator'!N83 -> 0
A7: Less | B7: =Serviceability!$D$54&" - "&Serviceability!E57 -> RedZed Loan Applied For - Loan 2 | C7: =-Serviceability!N57 -> 0 | E7: Less | F7: =Serviceability!$D$54&" - "&Serviceability!I57 -> RedZed Loan Applied For - | G7: =-Serviceability!R57 -> 0
A8: Less | B8: =Serviceability!$D$54&" - "&Serviceability!E58 -> RedZed Loan Applied For - Loan 3 | C8: =-Serviceability!N58 -> 0 | E8: Less | F8: =Serviceability!$D$54&" - "&Serviceability!I58 -> RedZed Loan Applied For - | G8: =-Serviceability!R58 -> 0
A9: Plus | B9: =Serviceability!$D$54&" - "&Tables!A32 -> RedZed Loan Applied For - Buffered Loan 1 | C9: =Tables!B32 -> 0 | E9: Plus | F9: =Serviceability!$D$54&" - "&Tables!A395 -> RedZed Loan Applied For - Buffered Loan 1 | G9: =Tables!B395 -> 0 | K9: =SUM(G3,K3:K6) -> -166.6666667
A10: Plus | B10: =Serviceability!$D$54&" - "&Tables!A33 -> RedZed Loan Applied For - Buffered Loan 2 | C10: =Tables!B33 -> 0 | E10: Plus | F10: =Serviceability!$D$54&" - "&Tables!E33 -> RedZed Loan Applied For - 0 | G10: =0 -> 0
A11: Plus | B11: =Serviceability!$D$54&" - "&Tables!A34 -> RedZed Loan Applied For - Buffered Loan 3 | C11: =Tables!B34 -> 0 | E11: Plus | F11: =Serviceability!$D$54&" - "&Tables!E34 -> RedZed Loan Applied For - 0 | G11: =0 -> 0
A12: Less | B12: =Serviceability!$D$61&": "&Serviceability!E61 -> Existing Loans: Loan 1 - Existing Secured | C12: =-Serviceability!N61 -> 0 | E12: Less | F12: =Serviceability!$D$61&": "&'SMSF Serviceability Calculator'!E55 -> Existing Loans: Loan 1 | G12: =-'SMSF Serviceability Calculator'!N55 -> 0
A13: Less | B13: =Serviceability!$D$61&": "&Serviceability!E62 -> Existing Loans: Loan 2 - Existing Secured | C13: =-Serviceability!N62 -> 0 | E13: Less | F13: =Serviceability!$D$61&": "&'SMSF Serviceability Calculator'!E56 -> Existing Loans: Loan 2 | G13: =-'SMSF Serviceability Calculator'!N56 -> 0
A14: Plus | B14: =Serviceability!$D$61&": "&Tables!A38 -> Existing Loans: Buffered Loan 1 | C14: =Tables!C38 -> 0 | E14: Less | F14: =Serviceability!$D$61&": "&'SMSF Serviceability Calculator'!E57 -> Existing Loans: Loan 3 | G14: =-'SMSF Serviceability Calculator'!N57 -> 0
A15: Plus | B15: =Serviceability!$D$61&": "&Tables!A39 -> Existing Loans: Buffered Loan 2 | C15: =Tables!C39 -> 0 | E15: Plus | F15: =Serviceability!$D$61&": "&'SMSF Serviceability Calculator'!D60 -> Existing Loans: Other Loan/Liability Limits if any | G15: =-'SMSF Serviceability Calculator'!N60 -> 0
A16: Plus | B16: =Tables!A43 -> Fees - Loan 1 | C16: =Tables!C43 -> 0 | E16: Plus | F16: =Serviceability!$D$61&": "&Tables!A401 -> Existing Loans: Buffered Loan 1 | G16: =Tables!C401 -> 0
A17: Plus | B17: =Tables!A44 -> Fees - Loan 2 | C17: =Tables!C44 -> 0 | E17: Plus | F17: =Serviceability!$D$61&": "&Tables!A402 -> Existing Loans: Buffered Loan 2 | G17: =Tables!C402 -> 0
A18: Plus | B18: =Tables!A45 -> Fees - Loan 3 | C18: =Tables!C45 -> 0 | E18: Plus | F18: =Serviceability!$D$61&": "&Tables!A403 -> Existing Loans: Buffered Loan 3 | G18: =Tables!C403 -> 0
E19: Plus | F19: =Tables!A410 -> Fees - Loan 1 | G19: =Tables!C410 -> 0
B20: Total Monthly Commitments (After Repayment Buffering & Fees) | C20: =SUM(C5:C19) -> 0 | E20: Plus | F20: =Tables!E44 -> 0 | G20: =Tables!G44 -> 0
F21: =Tables!E45 -> 0 | G21: =Tables!G45 -> 
B22: =Serviceability!K76&" - Calculated as:" -> - Calculated as: | C22: =ROUNDUP(C3/C20,2) ->  | F22: =Serviceability!$D$61&": "&Tables!A404 -> Existing Loans: Buffered Other Loan/Liability Limits if any | G22: =Tables!C404 -> 0
F23: Total Monthly Commitments (After Repayment Buffering & Fees) | G23: =SUM(G5:G22) -> 0
J24: =ROUNDUP(K9/G23,2) -> 
F25: =Serviceability!O76&" - Calculated as:" -> - Calculated as: | G25: =ROUNDUP(G3/G23,2) -> 
G26: =G25 -> 

Sheet Tax Calc (hidden)
A1: Tax Calc
A3: Annual Gross | D3: Gross | E3: Tax | F3: Medicare | G3: Income offset | H3: Net | I3: Net Monthly
A5: Applicant / G'Tor 1 | B5: Salary / Self Employed | D5: =Serviceability!I13 -> 10000 | E5: =IF(D5<Tables!$A$6,0,IF(AND(D5>Tables!$A$6,D5<Tables!$A$7),(D5-Tables!$A$6)*Tables!$C$6,IF(AND(D5>Tables!$A$7,D5<Tables!$A$8),Tables!$D$7+(D5-Tables!$A$7)*Tables!$C$7,IF(AND(D5>Tables!$A$8,D5<Tables!$A$9),Tables!$D$8+(D5-Tables!$A$8)*Tables!$C$8,IF(D5>Tables!$A$9,Tables!$D$9+(D5-Tables!$A$9)*Tables!$C$9))))) -> 0 | F5: =D5*Tables!C$16 -> 200 | G5: =IFERROR(((D5-VLOOKUP(D5,$A$29:$D$33,1,TRUE))*VLOOKUP(D5,$A$29:$D$33,3,TRUE)+VLOOKUP(D5,$A$29:$D$33,4,TRUE)),0)+IFERROR((IF(D5>66667,66667-45001,(D5-VLOOKUP(D5,$A$41:$D$43,1,TRUE)))*VLOOKUP(D5,$A$41:$D$43,3,TRUE)+VLOOKUP(D5,$A$41:$D$43,4,TRUE)),0) -> 0 | H5: =D5-E5-F5+G5 -> 9800 | I5: =H5/12 -> 816.6666667
A6: Applicant / G'Tor 2 | B6: Salary / Self Employed | D6: =Serviceability!I14 -> 0 | E6: =IF(D6<Tables!$A$6,0,IF(AND(D6>=Tables!$A$6,D6<Tables!$A$7),(D6-Tables!$A$6)*Tables!$C$6,IF(AND(D6>=Tables!$A$7,D6<Tables!$A$8),Tables!$D$7+(D6-Tables!$A$7)*Tables!$C$7,IF(AND(D6>=Tables!$A$8,D6<Tables!$A$9),Tables!$D$8+(D6-Tables!$A$8)*Tables!$C$8,IF(D6>=Tables!$A$9,Tables!$D$9+(D6-Tables!$A$9)*Tables!$C$9))))) -> 0 | F6: =D6*Tables!C$16 -> 0 | G6: =IFERROR(((D6-VLOOKUP(D6,$A$29:$D$33,1,TRUE))*VLOOKUP(D6,$A$29:$D$33,3,TRUE)+VLOOKUP(D6,$A$29:$D$33,4,TRUE)),0)+IFERROR((IF(D6>66667,66667-45001,(D6-VLOOKUP(D6,$A$41:$D$43,1,TRUE)))*VLOOKUP(D6,$A$41:$D$43,3,TRUE)+VLOOKUP(D6,$A$41:$D$43,4,TRUE)),0) -> 0 | H6: =D6-E6-F6+G6 -> 0 | I6: 0
A7: Applicant / G'Tor 3 | B7: Salary / Self Employed | D7: =Serviceability!I15 -> 400 | E7: =IF(D7<Tables!$A$6,0,IF(AND(D7>=Tables!$A$6,D7<Tables!$A$7),(D7-Tables!$A$6)*Tables!$C$6,IF(AND(D7>=Tables!$A$7,D7<Tables!$A$8),Tables!$D$7+(D7-Tables!$A$7)*Tables!$C$7,IF(AND(D7>=Tables!$A$8,D7<Tables!$A$9),Tables!$D$8+(D7-Tables!$A$8)*Tables!$C$8,IF(D7>=Tables!$A$9,Tables!$D$9+(D7-Tables!$A$9)*Tables!$C$9))))) -> 0 | F7: =D7*Tables!C$16 -> 8 | G7: 0 | H7: 392 | I7: 32.66666667
A8: Applicant / G'Tor 4 | B8: Salary / Self Employed | D8: =Serviceability!I16 -> 0 | E8: =IF(D8<Tables!$A$6,0,IF(AND(D8>=Tables!$A$6,D8<Tables!$A$7),(D8-Tables!$A$6)*Tables!$C$6,IF(AND(D8>=Tables!$A$7,D8<Tables!$A$8),Tables!$D$7+(D8-Tables!$A$7)*Tables!$C$7,IF(AND(D8>=Tables!$A$8,D8<Tables!$A$9),Tables!$D$8+(D8-Tables!$A$8)*Tables!$C$8,IF(D8>=Tables!$A$9,Tables!$D$9+(D8-Tables!$A$9)*Tables!$C$9))))) -> 0 | F8: =D8*Tables!C$16 -> 0 | G8: 0 | H8: 0 | I8: 0
A9: Member / G'Tor 1 | B9: Salary / Self Employed | D9: ='Member Serviceability Calc'!K13 -> 0 | E9: =IF(D9<Tables!$A$6,0,IF(AND(D9>=Tables!$A$6,D9<Tables!$A$7),(D9-Tables!$A$6)*Tables!$C$6,IF(AND(D9>=Tables!$A$7,D9<Tables!$A$8),Tables!$D$7+(D9-Tables!$A$7)*Tables!$C$7,IF(AND(D9>=Tables!$A$8,D9<Tables!$A$9),Tables!$D$8+(D9-Tables!$A$8)*Tables!$C$8,IF(D9>=Tables!$A$9,Tables!$D$9+(D9-Tables!$A$9)*Tables!$C$9))))) -> 0 | F9: =D9*Tables!C$16 -> 0 | G9: 0 | H9: 0 | I9: 0
A10: Member / G'Tor 2 | B10: Salary / Self Employed | D10: ='Member Serviceability Calc'!K14 -> 0 | E10: =IF(D10<Tables!$A$6,0,IF(AND(D10>=Tables!$A$6,D10<Tables!$A$7),(D10-Tables!$A$6)*Tables!$C$6,IF(AND(D10>=Tables!$A$7,D10<Tables!$A$8),Tables!$D$7+(D10-Tables!$A$7)*Tables!$C$7,IF(AND(D10>=Tables!$A$8,D10<Tables!$A$9),Tables!$D$8+(D10-Tables!$A$8)*Tables!$C$8,IF(D10>=Tables!$A$9,Tables!$D$9+(D10-Tables!$A$9)*Tables!$C$9))))) -> 0 | F10: =D10*Tables!C$16 -> 0 | G10: 0 | H10: 0 | I10: 0
A11: Member / G'Tor 3 | B11: Salary / Self Employed | D11: ='Member Serviceability Calc'!K15 -> 0 | E11: =IF(D11<Tables!$A$6,0,IF(AND(D11>=Tables!$A$6,D11<Tables!$A$7),(D11-Tables!$A$6)*Tables!$C$6,IF(AND(D11>=Tables!$A$7,D11<Tables!$A$8),Tables!$D$7+(D11-Tables!$A$7)*Tables!$C$7,IF(AND(D11>=Tables!$A$8,D11<Tables!$A$9),Tables!$D$8+(D11-Tables!$A$8)*Tables!$C$8,IF(D11>=Tables!$A$9,Tables!$D$9+(D11-Tables!$A$9)*Tables!$C$9))))) -> 0 | F11: =D11*Tables!C$16 -> 0 | G11: 0 | H11: 0 | I11: 0
A12: Member / G'Tor 4 | B12: Salary / Self Employed | D12: ='Member Serviceability Calc'!K16 -> 0 | E12: =IF(D12<Tables!$A$6,0,IF(AND(D12>=Tables!$A$6,D12<Tables!$A$7),(D12-Tables!$A$6)*Tables!$C$6,IF(AND(D12>=Tables!$A$7,D12<Tables!$A$8),Tables!$D$7+(D12-Tables!$A$7)*Tables!$C$7,IF(AND(D12>=Tables!$A$8,D12<Tables!$A$9),Tables!$D$8+(D12-Tables!$A$8)*Tables!$C$8,IF(D12>=Tables!$A$9,Tables!$D$9+(D12-Tables!$A$9)*Tables!$C$9))))) -> 0 | F12: =D12*Tables!C$16 -> 0 | G12: 0 | H12: 0 | I12: 0
A19: Test lower and middle income offset | D19: Formula | E19: ( income - income lower range ) *offset rate + baseline
A21: income | B21: offset baseline | C21: Income lower range | D21: Income - Lower range | E21: offset reduced % | F21: offset reduced amount | G21: offset amount
A22: 80000 | B22: =VLOOKUP(A22,A29:D33,4,TRUE) -> 0 | C22: =VLOOKUP(A22,A29:D33,1,TRUE) -> 48001 | D22: =A22-C22 -> 31999 | E22: =VLOOKUP(A22,A29:D33,3,TRUE) -> 0 | F22: =+D22*E22 -> 0 | G22: =SUM(B22,F22) -> 0
A26: Lower and Middle income offset
A28: Wages Over | B28: Not to Exceed | C28: Tax Rate
A29: 1 | B29: 37000 | D29: 0
A30: =B29+1 -> 37001 | B30: 48000 | C30: 0 | D30: 0
A31: =B30+1 -> 48001 | B31: 90000 | C31: 0 | D31: 0
A32: =B31+1 -> 90001 | B32: 126000 | C32: 0 | D32: 0
A33: =B32+1 -> 126001 | C33: 0 | D33: 0
A38: Low Income offset
A40: Wages Over | B40: Not to Exceed | C40: Tax Rate
A41: 1 | B41: 37500 | D41: 0 | K41: =I41*52 -> 0
A42: =B41+1 -> 37501 | B42: 45000 | C42: 0 | D42: 0
A43: =B42+1 -> 45001 | B43: 66667 | C43: 0 | D43: 0
A48: Test low income
A50: income | B50: offset baseline | C50: Income lower range | D50: Income - Lower range | E50: offset reduced % | F50: offset reduced amount | G50: offset amount
A51: 80000 | B51: =VLOOKUP(A51,A41:D43,4,TRUE) -> 0 | C51: =VLOOKUP(A51,A41:D43,1,TRUE) -> 45001 | D51: =IF(A51>66667, 66667-45001, A51-C51) -> 21666 | E51: =VLOOKUP(A51,A41:D43,3,TRUE) -> 0 | F51: =+D51*E51 -> 0 | G51: =SUM(B51,F51) -> 0

Sheet User Problems (hidden)
A1: # | B1: Date | C1: Submitted By | D1: Sheet Name (if applicable) | E1: Problem | F1: Initial Review Assessment | G1: Review Result Date | H1: Review With User | I1: Review Result or Action to Take | J1: Sheets Affected | K1: Development Version # | L1: Type | M1: Estimate (hrs) | N1: Actual | O1: Status | P1: Date Unit Tested | Q1: Release Version #
A2: 1 | B2: 2017-04-06 | C2: Bill Slattery | E2: What we are trying to achieve is a stress test of servicing capacity at the higher of; 1. The selected interest rate + 2% or 2. 7% This change should only apply to Residential loans. | K2: ='Version Control'!C2 -> V1.2 | L2: Enhancement | O2: Completed | P2: 2017-04-10 | Q2: ='Version Control'!$C$9 -> 0
A3: 2 | B3: 2017-04-10 | C3: Trevor Smith | E3: The tax table in the Residential calculator is not the same as in the Consolidated Calculator. Looks like the Residential Calculator was not updated for the 2017/2018 change to the upper limit for the 32.5% rate (ie from $80000 to $87000). | F3: Change the tax table in the Residential Calculator in expectation you want it to match that in the Consolidated Calculator. | G3: 2017-04-10 | H3: Bill Slattery | I3: Change as recommended | K3: ='Version Control'!C3 -> 0 | L3: Bug | O3: Completed | P3: 2017-04-10 | Q3: ='Version Control'!$C$9 -> 0
A4: 3 | B4: 2017-04-24 | C4: Bill Slattery | D4: Serviceability Calc | E4: Add Serviceabilty Calculation Sheet as per Consolidated User Problem #131. | F4: Name as "Serviceability Calc" | K4: ='Version Control'!$C$4 -> 0 | L4: Enhancement | O4: Completed | P4: 2017-05-01 | Q4: ='Version Control'!$C$9 -> 0
A5: 4 | B5: 2017-04-24 | C5: Mario Lorenzi | E5: Add two macros: -Ctl/Shift/B to unhide the calculation sheets -Ctl/Shift/H to hide the calculation sheets | K5: ='Version Control'!$C$4 -> 0 | L5: Enhancement | O5: Completed | P5: 2017-05-01 | Q5: ='Version Control'!$C$9 -> 0
A6: 5 | B6: 2017-04-24 | C6: Mario Lorenzi | D6: Tables | E6: Change Company Tax Rate to 28.5% | F6: Set up a a new Company Tax Table on Tables sheet. Change Company Income Calculation (Cell K18) to reference the new Company Tax Table. | K6: ='Version Control'!$C$4 -> 0 | L6: Data Maintenance | O6: Completed | P6: 2017-05-01 | Q6: ='Version Control'!$C$9 -> 0
A7: 6 | B7: 2017-04-24 | C7: Mario Lorenzi | D7: Serviceability | E7: Add Interest Only Term cells for RedZed Loans 1 and 2 on Serviceability sheet. Change the Rate buffering calculation to use the net term (Total Term less Interest Only Term) | K7: ='Version Control'!$C$4 -> 0 | L7: Enhancement | O7: Completed | P7: 2017-05-01 | Q7: ='Version Control'!$C$9 -> 0
A8: 7 | B8: 2017-04-24 | C8: Mario Lorenzi | D8: Serviceability | E8: Add Source of Other Incomes cell for each of the Other Regular Monthly Income lines on the Serviceability sheets. | K8: ='Version Control'!$C$4 -> 0 | L8: Enhancement | O8: Completed | P8: 2017-05-01 | Q8: ='Version Control'!$C$9 -> 0
A9: 8 | B9: 2017-04-24 | C9: Mario Lorenzi | D9: Serviceability | E9: Change Company Income heading to display "Company Income (if applicable)" | K9: ='Version Control'!$C$4 -> 0 | L9: Enhancement | O9: Completed | P9: 2017-05-01 | Q9: ='Version Control'!$C$9 -> 0
A10: 9 | B10: 2017-04-24 | C10: Mario Lorenzi | D10: Serviceability | E10: Swap columns displaying Existing & New v Rental Income/Rental Income | K10: ='Version Control'!$C$4 -> 0 | L10: Enhancement | O10: Completed | P10: 2017-05-01 | Q10: ='Version Control'!$C$9 -> 0
A11: 10 | B11: 2017-04-24 | C11: Mario Lorenzi | D11: Tables | E11: Check Monthly Service Fee calculation - to assume entry of Residential Loans only - calculated at $15 per month | K11: ='Version Control'!$C$4 -> 0 | L11: Bug | O11: Completed | P11: 2017-05-01 | Q11: ='Version Control'!$C$9 -> 0
A12: 11 | B12: 2017-04-24 | C12: Mario Lorenzi | D12: Serviceability | E12: Company Income headings realigned to display above the detail line | K12: ='Version Control'!$C$4 -> 0 | L12: Enhancement | O12: Completed | P12: 2017-05-01 | Q12: ='Version Control'!$C$9 -> 0
A13: 12 | B13: 2017-04-24 | C13: Mario Lorenzi | D13: Serviceability | E13: Company Income section moved to display after Rental Income | K13: ='Version Control'!$C$4 -> 0 | L13: Enhancement | O13: Completed | P13: 2017-05-01 | Q13: ='Version Control'!$C$9 -> 0
A14: 13 | B14: 2017-04-24 | C14: Mario Lorenzi | D14: Serviceability | E14: Change Personal Income descriptors from "Guarantor 1, 2, 3, and 4" to "Applicant / Guarantor 1, 2, 3, and 4" | K14: ='Version Control'!$C$4 -> 0 | L14: Enhancement | O14: Completed | P14: 2017-05-01 | Q14: ='Version Control'!$C$9 -> 0
A15: 14 | B15: 2017-04-24 | C15: Mario Lorenzi | D15: Tables | E15: Tables Sheet - Highlight in yellow those data cells that can be changed to reflect legislation or company policy changes. | K15: ='Version Control'!$C$4 -> 0 | L15: Enhancement | O15: Completed | P15: 2017-05-01 | Q15: ='Version Control'!$C$9 -> 0
A16: 15 | B16: 2017-06-08 | C16: Mario Lorenzi | D16: Tax Calc | E16: Tax Calc Sheet - delete Other Income Cells A10 to I13 | K16: ='Version Control'!$C$5 -> 0 | L16: Enhancement | O16: Completed | P16: 2017-06-15 | Q16: ='Version Control'!$C$9 -> 0
A17: 16 | B17: 2017-06-08 | C17: Mario Lorenzi | D17: Tax Calc | E17: Tax Calc Sheet - delete "Correct Formula For Serviceability - Don’t Think Arm Can Do This" Cells L1 to R25 | K17: ='Version Control'!$C$5 -> 0 | L17: Enhancement | O17: Completed | P17: 2017-06-15 | Q17: ='Version Control'!$C$9 -> 0
A18: 17 | B18: 2017-06-08 | C18: Mario Lorenzi | D18: Serviceability | E18: Fix formatting of Financier Cells for Existing Loans | K18: ='Version Control'!$C$5 -> 0 | L18: Bug | O18: Completed | P18: 2017-06-15 | Q18: ='Version Control'!$C$9 -> 0
A19: 18 | B19: 2017-06-19 | C19: Trevor Smith | D19: User Problems Version Control | E19: Add Sheets for User Problems and Version Control. | K19: ='Version Control'!$C$6 -> 0 | L19: Enhancement | O19: Completed | P19: 2017-06-20 | Q19: ='Version Control'!$C$9 -> 0
A20: 19 | B20: 2017-06-19 | C20: Angelo Klidomitis | D20: Serviceability | E20: Change Look & Feel as per 4.0 ServiceabilityCalculator.xlsx | K20: ='Version Control'!$C$6 -> 0 | L20: Enhancement | O20: Completed | P20: 2017-06-21 | Q20: ='Version Control'!$C$9 -> 0
A21: 20 | B21: 2017-05-22 | C21: Mario Lorenzi & Bill Slattery | D21: Serviceability | E21: Increase readability of printed version of the sheet | K21: ='Version Control'!C7 -> 0 | L21: Enhancement | O21: Completed | P21: 2017-06-26 | Q21: ='Version Control'!$C$9 -> 0
A22: 21 | B22: 2017-06-29 | C22: Mario Lorenzi | D22: Serviceability | E22: 1) Borders missing for Enter Source of Income, Rental Income, Maintenance, & Other Fixed Monthly Repayments. 2) Enter a zero in each dollar entry cell so the user is aware it is available for entry. | K22: ='Version Control'!C8 -> 0 | L22: Enhancement & Bug | O22: Completed | P22: 2017-06-29 | Q22: ='Version Control'!$C$9 -> 0
A23: 22 | B23: 2018-11-20 | C23: Lorraine Taylor | D23: Servicebility | E23: IF more then three adult in one household please display the mssage | K23: V7.3 | O23: Completed | P23: 2018-11-20 | Q23: V7.3
A24: 23
A25: 24
A26: 25
A27: 26
A28: 27
A29: 28
A30: 29
A31: 30
A32: 31
A33: 32
A34: 33

Sheet Version Control (hidden)
A1: Name | B1: Date | C1: Version # | D1: Development Version File Name | E1: Changes | F1: Released Version | H1: Current Version | I1: =VLOOKUP($J$1,B2:$I$3984,8,FALSE) -> V1.2 240206 | J1: =MAX(B2:B3984) -> 2024-02-06
A2: Shun Yin | B2: 2024-02-06 | C2: V1.2 | D2: Change the Company Tax Rate | E2: Change the Company Tax Rate | G2: =IFERROR(VLOOKUP(MONTH(B2),'Day and Months Table'!A:B,2,FALSE)&VLOOKUP(DAY(B2),'Day and Months Table'!A:B,2,FALSE),"N/A") -> 0206 | H2: =RIGHT(YEAR(B2),2)&G2 -> 240206 | I2: =CONCATENATE(C2," ",H2) -> V1.2 240206

Sheet Day and Months Table (hidden)
A1: 1 | B1: 01
A2: 2 | B2: 02
A3: 3 | B3: 03
A4: 4 | B4: 04
A5: 5 | B5: 05
A6: 6 | B6: 06
A7: 7 | B7: 07
A8: 8 | B8: 08
A9: 9 | B9: 09
A10: 10 | B10: 10
A11: 11 | B11: 11
A12: 12 | B12: 12
A13: 13 | B13: 13
A14: 14 | B14: 14
A15: 15 | B15: 15
A16: 16 | B16: 16
A17: 17 | B17: 17
A18: 18 | B18: 18
A19: 19 | B19: 19
A20: 20 | B20: 20
A21: 21 | B21: 21
A22: 22 | B22: 22
A23: 23 | B23: 23
A24: 24 | B24: 24
A25: 25 | B25: 25
A26: 26 | B26: 26
A27: 27 | B27: 27
A28: 28 | B28: 28
A29: 29 | B29: 29
A30: 30 | B30: 30
A31: 31 | B31: 31
